{"text_format":"1","workbook":"xlsx","n_sheets":6,"sheets":["Aloitus","Ohje","Mitoitus","Data","A","Laskentatulokset ja kuvaajat"],"not_rendered":{"charts":5,"images":4,"macros":1,"external_links":0,"defined_names":123,"comments":1,"pivot_tables":0},"unopened":[],"bounds":{"document_bytes":16777216,"sheet_cells":100000,"rows_first":2000,"rows_last":500,"rows_between":2000,"halvings":0,"cell_chars":16384,"cell_head_chars":4096},"cells_cut":0,"cells_raw":0,"read":"whole","date_system":"1900"}

{"sheet":"Aloitus","index":0,"n_rows":21,"n_cols":11,"rows_kept":21,"cut":false,"hidden":false,"merged":[[1,10,1,11],[20,3,20,10],[14,3,15,10],[12,3,13,10],[16,3,17,10],[18,3,18,10],[19,3,19,10]]}
[]
[null,null,null,null,null,null,null,null,null,null,{"$f":"D19","v":"Versio 2.0"}]
[]
[]
[]
[]
[]
[]
[]
[]
[]
[]
[null,null,null,"Rakennuksen E-luvun arviointilaskuri"]
[]
[null,null,null,"Suomen rakentamismääräyskokoelma"]
[]
[]
[]
[null,null,null,"Versio 2.0"]
[]
[null,null,null,"2019-10-30"]

{"sheet":"Ohje","index":1,"n_rows":6,"n_cols":11,"rows_kept":6,"cut":false,"hidden":false,"merged":[[5,3,6,10],[1,10,1,11]]}
[]
[null,null,null,null,null,null,null,null,null,null,{"$f":"Aloitus!K2","v":"Versio 2.0"}]
[]
[]
[]
[null,null,null,"Tietoja ohjelmasta ja E-luvusta"]

{"sheet":"Mitoitus","index":2,"n_rows":58,"n_cols":50,"rows_kept":58,"cut":false,"hidden":false,"merged":[[54,20,54,23],[3,2,5,6],[3,7,3,8],[3,9,5,11],[1,10,1,11],[7,20,9,24],[7,15,9,19],[3,22,5,24],[3,20,3,21],[3,15,5,19],[1,23,1,24],[7,2,9,6],[7,7,9,11],[17,8,17,10],[33,9,33,10],[14,20,14,23],[1,36,1,37],[3,28,5,32],[3,33,3,34],[3,35,5,37],[7,28,9,32],[7,33,9,37],[52,20,52,23],[40,20,40,23],[34,20,34,23],[36,20,36,23],[38,20,38,23],[50,20,50,23],[47,35,51,36],[13,6,13,10],[22,20,22,23],[23,9,23,10],[27,9,27,10],[32,16,32,23],[29,20,29,23],[34,34,38,36],[32,34,32,36],[33,34,33,36]]}
[null,null,null,null,null,null,null,null,null,null,null,null,null,null,null,null,null,null,null,null,null,null,null,null,null,null,null,null,null,null,null,null,null,null,null,null,null,null,null,null,null,null,null,null,null,null,null,null,null,2]
[null,null,null,null,null,null,null,null,null,null,{"$f":"Aloitus!K2","v":"Versio 2.0"},null,null,null,null,null,null,null,null,null,null,null,null,{"$f":"Aloitus!K2","v":"Versio 2.0"},null,null,null,null,null,null,null,null,null,null,null,null,{"$f":"Aloitus!K2","v":"Versio 2.0"},null,null,null,null,null,null,null,null,null,null,null,null,2]
[null,null," Suunnittelutoimisto",null,null,null,null," Työn nro",null,"Sivu",null,null,null,null,null,{"$f":"C3","v":" Suunnittelutoimisto"},null,null,null,null,{"$f":"H3","v":" Työn nro"},null,{"$f":"J3","v":"Sivu"},null,null,null,null,null,{"$f":"P3","v":" Suunnittelutoimisto"},null,null,null,null,{"$f":"U3","v":" Työn nro"},null,{"$f":"W3","v":"Sivu"}]
[null,null,"x",null,null,null,null,"x",null,"1 / 3",null,null,null,null,null,{"$f":"C4","v":"x"},null,null,null,null,"x",null,"2 / 3",null,null,null,null,null,{"$f":"P4","v":"x"},null,null,null,null,"x",null,"3 / 3"]
[null,null,null,null,null,null,null," Päiväys"," Tekijä",null,null,null,null,null,null,null,null,null,null,null," Päiväys",{"$f":"I5","v":" Tekijä"},null,null,null,null,null,null,null,null,null,null,null," Päiväys",{"$f":"V5","v":" Tekijä"}]
[null,null,null,null,null,null,null,"x","x",null,null,null,null,null,null,null,null,null,null,null,"x",{"$f":"I6","v":"x"},null,null,null,null,null,null,null,null,null,null,null,"x",{"$f":"V6","v":"x"}]
[null,null," Rakennuskohde",null,null,null,null," Sisältö",null,null,null,null,null,null,null,{"$f":"C7","v":" Rakennuskohde"},null,null,null,null," Sisältö",null,null,null,null,null,null,null,{"$f":"P7","v":" Rakennuskohde"},null,null,null,null," Sisältö"]
[null,null,"x",null,null,null,null,"Rakennuksen E-luvun arviointilaskuri",null,null,null,null,null,null,null,{"$f":"C8","v":"x"},null,null,null,null,"Rakennuksen E-luvun arviointilaskuri",null,null,null,null,null,null,null,{"$f":"P8","v":"x"},null,null,null,null,"Rakennuksen E-luvun arviointilaskuri"]
[]
[]
[]
[]
[null,null,null,"RAKENNUKSEN TIEDOT",null,null,null,null,null,null,"Info",null,null,null,null,null,"ILMANVAIHDON TIEDOT",null,null,null,null,null,null,"Info",null,null,null,null,null,"LASKENTATULOKSET VALITUILLA ARVOILLA",null,null,null,null,null,null,"Info"]
[null,null,null,"Rakennusluokka",null,null,"Erillinen pientalo, 50 … 150 m2"]
[null,null,null,null,null,null,null,null,null,null,null,null,null,null,null,null,"Koneellinen ilmanvaihto",null,null,null,"Normaalilla hyötysuhteella toimiva ilmanvaihto",null,null,null,null,null,null,null,null,null,null,null,null,null,"Energiamuotojen kertoimet"]
[null,null,null,"Lämmitetty nettopinta-ala, Anetto",null,null,149.6,"m2",null,null,null,null,null,null,null,null,null,null,null,null,null,null,null,null,null,null,null,null,null,null,null,null,null,null,"1,20 - sähkö"]
[null,null,null,null,null,null,null,null,"Rakennusvaipan massiivisuus",null,null,null,null,null,null,null,"IV-koneen LTO:n poistoilman vuosihyötysuhde",null,null,null,{"$f":"CHOOSE(Koneellinen_ilmanvaihtoV,0.77,0.61,0.49)","v":0.61},null,null,null,null,null,null,null,null,null,null,null,null,null,"0,50 - kaukolämpö"]
[null,null,null,"Kerroslukumäärä",null,null,1,null,"Kevytrakenteinen",null,null,null,null,null,null,null,null,null,null,null,null,null,null,null,null,null,null,null,null,null,null,null,null,null,"1,00 - fossiiliset polttoaineet"]
[null,null,null,null,null,null,null,null,null,null,null,null,null,null,null,null,"SFP-luku",null,null,null,{"$f":"CHOOSE(Koneellinen_ilmanvaihtoV,1.5,1.75,2)","v":1.75},"kW/(m3/s)",null,null,null,null,null,null,null,null,null,null,null,null,"0,50 - rakennuksessa käytettävät "]
[null,null,null,"RAKENTEIDEN TIEDOT",null,null,null,null,null,null,"Info",null,null,null,null,null,null,null,null,null,null,null,null,null,null,null,null,null,null,null,null,null,null,null,"          uusiutuvat polttoaineet "]
[null,null,null,null,null,"Pinta-ala","U-arvon","Käytettävä ",null,null,null,null,null,null,null,null,"Tuloilman lämpötila jälkilämmityspatterin jälkeen",null,null,null,18,"°C"]
[null,null,null,null,null,null,"vertailuarvo","U-arvo",null,null,null,null,null,null,null,null,null,null,null,null,null,null,null,null,null,null,null,null,null,null,null,null,null,null,"Laskennassa käytetyt U-arvot [W/m2K]"]
[null,null,null,null,null,"m2","W/m2K","W/m2K",null,"Ulkoseinän tyyppi",null,null,null,null,null,null,"Jälkilämmityspatteri",null,null,null,"Kytketty lämmitysjärjestelmään",null,null,null,null,null,null,null,null,null,null,null,null,null,"Ulkoseinät",null,{"$f":"$H$24","v":0.17}]
[null,null,null,"Ulkoseinät",null,113,{"$f":"CHOOSE(Ulkoseinän_tyyppiV,0.4,0.17)","v":0.17},0.17,null,"Muu seinätyyppi",null,null,null,null,null,null,null,null,null,null,null,null,null,null,null,null,null,null,null,null,null,null,null,null,"Yläpohja",null,{"$f":"$H$26","v":0.09}]
[null,null,null,null,null,null,null,null,null,null,null,null,null,null,null,null,"Ilmanvuotoluku (q50)",null,null,null,4,"m3/(hm2)",null,null,null,null,null,null,null,null,null,null,null,null,"Alapohja",null,{"$f":"$H$28","v":0.17}]
[null,null,null,"Yläpohja",null,149.6,0.09,0.09,null,null,null,null,null,null,null,null,null,null,null,null,null,null,null,null,null,null,null,null,null,null,null,null,null,null,"Kattoikkunat",null,{"$f":"$H$30","v":0}]
[null,null,null,null,null,null,null,null,null,"Alapohjan tyyppi",null,null,null,null,null,null,null,null,null,null,null,null,null,null,null,null,null,null,null,null,null,null,null,null,"Ulko-ovet",null,{"$f":"$H$32","v":1}]
[null,null,null,"Alapohja",null,149.6,{"$f":"CHOOSE(Alapohjan_tyyppiV,0.16,0.17)","v":0.16},0.17,null,"Maata vasten",null,null,null,null,null,null,"LÄMMITYSJÄRJESTELMÄN TIEDOT",null,null,null,null,null,null,"Info",null,null,null,null,null,null,null,null,null,null,"Ikkunat (pohjoinen)",null,{"$f":"H36","v":1}]
[null,null,null,null,null,null,null,null,null,null,null,null,null,null,null,null,null,null,null,null,null,null,null,null,null,null,null,null,null,null,null,null,null,null,"Ikkunat (itä)",null,{"$f":"H38","v":1}]
[null,null,null,"Kattoikkunat",null,0,1,null,null,null,null,null,null,null,null,null,"Lämmitystapa",null,null,null,"Kaukolämpö",null,null,null,null,null,null,null,null,"Kuvaaja 1. Energiamuotojen kertoimilla painotettu kokonaisenergiantarve.",null,null,null,null,"Ikkunat (etelä)",null,{"$f":"H40","v":1}]
[null,null,null,null,null,null,null,null,null,null,null,null,null,null,null,null,null,null,null,null,null,null,null,null,null,null,null,null,null,null,null,null,null,null,"Ikkunat (länsi)",null,{"$f":"H42","v":1}]
[null,null,null,"Ulko-ovet",null,8.1999999999999993,1,1,null,null,null,null,null,null,null,null,"Tilojen lämmönjakojärjestelmä"]
[null,null,null,null,null,null,null,null,null,"Ikkunoiden U-arvo:",null,null,null,null,null,null,"Vesikiertoinen lattialämmitys 40/30 °C - maata vasten rajoittuvassa rakenteessa",null,null,null,null,null,null,null,null,null,null,null,null,null,null,null,null,null,"Energiatehokkuusluokka"]
[null,null,null,"Ikkunapinta-ala",null,0.17,null,null,null,1,null,null,null,null,null,null,null,null,null,null,null,null,null,null,null,null,null,null,null,null,null,null,null,null,"valituilla U-arvoilla"]
[null,null,null,null,null,null,null,null,null,null,null,null,null,null,null,null,"Varaavien tulisijojen määrä",null,null,null,0,null,null,null,null,null,null,null,null,null,null,null,null,null,{"$f":"'Laskentatulokset ja kuvaajat'!U21","v":"B"}]
[null,null,null,"Ikkunat pohjoiseen",null,{"$f":"Ikkunapinta_ala*Lämmitetty_nettopinta_ala__Anetto * 35/100","v":8.9012000000000011},1,{"$f":"Ikkunoiden_U_arvo","v":1},"                Ikkunan g-arvo",null,0.55000000000000004]
[null,null,null,null,null,null,null,null,null,null,null,null,null,null,null,null,"Lämpimän käyttöveden varastointi",null,null,null,"300 l varaaja, 40 mm eristys"]
[null,null,null,"Ikkunat itään",null,{"$f":"Ikkunapinta_ala*Lämmitetty_nettopinta_ala__Anetto * 5/100","v":1.2716000000000001},1,{"$f":"Ikkunoiden_U_arvo","v":1},"                Ikkunan g-arvo",null,0.55000000000000004]
[null,null,null,null,null,null,null,null,null,null,null,null,null,null,null,null,"Lämpimän käyttöveden kierto- ja siirtojohdot",null,null,null,"Kiertojohto - suojaputkessa"]
[null,null,null,"Ikkunat etelään",null,{"$f":"Ikkunapinta_ala*Lämmitetty_nettopinta_ala__Anetto * 45/100","v":11.4444},1,{"$f":"Ikkunoiden_U_arvo","v":1},"                Ikkunan g-arvo",null,0.55000000000000004]
[null,null,null,null,null,null,null,null,null,null,null,null,null,null,null,null,"Käyttöveteen kytkettyjä lämmityslaitteita",null,null,null,"Ei"]
[null,null,null,"Ikkunat länteen",null,{"$f":"Ikkunapinta_ala*Lämmitetty_nettopinta_ala__Anetto * 15/100","v":3.8148},1,{"$f":"Ikkunoiden_U_arvo","v":1},"                Ikkunan g-arvo",null,0.55000000000000004]
[null,null,null,null,null,null,null,null,null,null,null,null,null,null,null,null,{"$f":"IF(Lämmitys_tapa=\"Maalämpöpumppu\",\"Maalämpöpumppu\",\"(Maalämpöpumppu)\")","v":"(Maalämpöpumppu)"},null,null,"Info",{"$f":"IF(Lämmitys_tapa=\"Poistoilmalämpöpumppu\",\"Poistoilmalämpöpumppu\",\"(Poistoilmalämpöpumppu)\")","v":"(Poistoilmalämpöpumppu)"},null,null,"Info"]
[null,null,null,"RAKENTEIDEN LIITTYMIEN KYLMÄSILTOJEN TIEDOT",null,null,null,null,null,null,"Info"]
[null,null,null,null,null,"Pituus",null,"Lisäkonduktanssi",null,"Huonekorkeus",null,null,null,null,null,null,"Tuotto-osuus",null,{"$f":"CHOOSE(LämmitystapaV,0,0,0,0,0,0.9,0)+Delta","v":1E-8},"Info","Tuotto-osuus",null,{"$f":"CHOOSE(LämmitystapaV,0,0,0,0,0,0,0.9)+Delta","v":1E-8},"Info"]
[null,null,null,"Ulkoseinä - Yläpohja",null,{"$f":"Yläpohja*38457/100000","v":57.531672},"m",{"$f":"LisaKonduktanssiUS(Ulkoseinän_tyyppiV,Rakennusvaipan_massiivisuusV)","v":0.05},"W/mK",2.5,"m"]
[null,null,null,null,null,null,null,null,null,null,null,null,null,null,null,null,"SPF-luku (tilat)",null,{"$f":"CHOOSE(LämmitystapaV,0,0,0,0,0,3,0)+Delta","v":1E-8},"Info","SPF-luku",null,{"$f":"CHOOSE(LämmitystapaV,0,0,0,0,0,0,2.1)+Delta","v":1E-8},"Info",null,null,null,null,null,"Kuvaaja 2. Sisätilojen lämmitystarpeen jakautuminen."]
[null,null,null,"Ulkoseinä - Alapohja",null,{"$f":"Alapohja*38457/100000","v":57.531672},"m",{"$f":"LisaKonduktanssiUSAP(Ulkoseinän_tyyppiV,Rakennusvaipan_massiivisuusV,Alapohjan_tyyppiV)","v":0.1},"W/mK",null,null,null,null,null,null,null,null,null,null,null,null,null,null,null,null,null,null,null,null,"Ostoenergiankulutus valituilla U-arvoilla",null,null,null,{"$f":"'Laskentatulokset ja kuvaajat'!E36","v":161.0363294857882},"kWh/m2a",{"$f":"IF(AH50<=AH51,\"TÄYTTÄÄ ENERGIA- TEHOKKUUS- VAATIMUKSET\",IF(AH50>AH51,\"EI TÄYTÄ ENERGIA- TEHOKKUUS- VAATIMUKSIA\"))","v":"TÄYTTÄÄ ENERGIA- TEHOKKUUS- VAATIMUKSET"}]
[null,null,null,null,null,null,null,null,null,null,null,null,null,null,null,null,"SPF-luku (käyttövesi)",null,{"$f":"CHOOSE(LämmitystapaV,0,0,0,0,0,2.3,0)+Delta","v":1E-8},"Info",null,null,null,null,null,null,null,null,null,"Ostoenergiankulutus U-arvon vertailuarvoilla",null,null,null,{"$f":"'Laskentatulokset ja kuvaajat'!J36","v":159.79085076238391},"kWh/m2a"]
[null,null,null,"Ulkoseinä - Välipohja",null,{"$f":"Alapohja * (Kerroslukumäärä - 1) * 38457 / 100000","v":0},"m",{"$f":"LisaKonduktanssiUSVP(Ulkoseinän_tyyppiV,Rakennusvaipan_massiivisuusV)","v":0.05},"W/mK",null,null,null,null,null,null,null,null,null,null,null,null,null,null,null,null,null,null,null,null,"E-luku valituilla U-arvoilla",null,null,null,{"$f":"'Laskentatulokset ja kuvaajat'!$F$36","v":101.56936474289409},"kWhE/m2a"]
[null,null,null,null,null,null,null,null,null,null,null,null,null,null,null,null,"Aurinkolämpö (tukemaan käyttöveden lämmitystä)",null,null,null,"Kyllä",null,null,null,null,null,null,null,null,"E-luku vaatimustaso",null,null,null,{"$f":"'Laskentatulokset ja kuvaajat'!U19","v":110.24000000000001},"kWhE/m2a"]
[null,null,null,"Ulkoseinän ulkonurkka",null,{"$f":"Huonekorkeus * 5 * Kerroslukumäärä","v":12.5},"m",{"$f":"LisaKonduktanssiUN(Ulkoseinän_tyyppiV,Rakennusvaipan_massiivisuusV)","v":0.04},"W/mK",null,null,null,null,null,null,null,null,null,null,null,null,null,null,null,null,null,null,null,null,"E-luku U-arvon vertailuarvoilla",null,null,null,{"$f":"'Laskentatulokset ja kuvaajat'!K36","v":100.94662538119195},"kWhE/m2a"]
[null,null,null,null,null,null,null,null,null,null,null,null,null,null,null,null,"Aurinkokeräimen pinta-ala",null,null,null,5,null,null,null,"m2"]
[null,null,null,"Ulkoseinän sisänurkka",null,{"$f":"Huonekorkeus * 1 * Kerroslukumäärä","v":2.5},"m",{"$f":"LisaKonduktanssiSN(Ulkoseinän_tyyppiV,Rakennusvaipan_massiivisuusV)","v":-0.04},"W/mK"]
[null,null,null,null,null,null,null,null,null,null,null,null,null,null,null,null,"Suuntaus",null,null,null,"etelä/kaakko/lounas"]
[null,null,null,"Ulkoseinä - Ikkuna",null,{"$f":"(Ikkunat_pohjoiseen+Ikkunat_itään+Ikkunat_etelään+Ikkunat_länteen) * 285714 / 100000","v":72.662784480000013},"m",0.04,"W/mK"]
[null,null,null,null,null,null,null,null,null,null,null,null,null,null,null,null,"Omavaraissähkö",null,null,null,0,"kWh/a",null,"Info"]
[null,null,null,"Ulkoseinä - Ovi",null,{"$f":"Ulko_ovet*2408/1000","v":19.7456},"m",0.04,"W/mK"]

{"sheet":"Data","index":3,"n_rows":210,"n_cols":37,"rows_kept":210,"cut":false,"hidden":true,"merged":[[187,3,187,4],[187,5,187,6],[1,20,1,33],[133,20,133,33],[145,20,145,33],[170,22,170,26],[133,2,133,15],[145,2,145,15],[1,2,1,15],[170,3,170,8],[186,21,186,36]]}
[]
[null,null,"E-luku valituilla U-arvoilla",null,null,null,null,null,null,null,null,null,null,null,null,null,null,null,null,null,"E-luku U-arvon vertailuarvoilla"]
[null,null,null,"Tammikuu","Helmikuu","Maaliskuu","Huhtikuu","Toukokuu","Kesäkuu","Heinäkuu","Elokuu","Syyskuu","Lokakuu","Marraskuu","Joulukuu","Koko vuosi",null,null,null,null,null,"Tammikuu","Helmikuu","Maaliskuu","Huhtikuu","Toukokuu","Kesäkuu","Heinäkuu","Elokuu","Syyskuu","Lokakuu","Marraskuu","Joulukuu","Koko vuosi",null,"Delta",1E-8]
[null,null,"Qulkoseinä 1",{"$f":"U_Ulkoseinät*Ulkoseinät*(TS-TU)*Tuntia/1000","v":356.8772328},329.18256000000002,337.01101919999996,228.21480000000003,146.35253760000001,93.637224000000003,52.881287999999984,70.746587999999988,144.81266400000001,211.52515200000002,283.53959999999995,331.43704560000003,{"$f":"SUM(D4:O4)","v":2586.2177111999999},null,null,null,null,"Qulkoseinä 1",{"$f":"Mitoitus!$G$24*Ulkoseinät*(TS-Data!D135)*Data!D138/1000","v":356.8772328},{"$f":"Mitoitus!$G$24*Ulkoseinät*(TS-Data!E135)*Data!E138/1000","v":329.18256000000002},{"$f":"Mitoitus!$G$24*Ulkoseinät*(TS-Data!F135)*Data!F138/1000","v":337.01101919999996},{"$f":"Mitoitus!$G$24*Ulkoseinät*(TS-Data!G135)*Data!G138/1000","v":228.21480000000003},{"$f":"Mitoitus!$G$24*Ulkoseinät*(TS-Data!H135)*Data!H138/1000","v":146.35253760000001},{"$f":"Mitoitus!$G$24*Ulkoseinät*(TS-Data!I135)*Data!I138/1000","v":93.637224000000003},{"$f":"Mitoitus!$G$24*Ulkoseinät*(TS-Data!J135)*Data!J138/1000","v":52.881287999999984},{"$f":"Mitoitus!$G$24*Ulkoseinät*(TS-Data!K135)*Data!K138/1000","v":70.746587999999988},{"$f":"Mitoitus!$G$24*Ulkoseinät*(TS-Data!L135)*Data!L138/1000","v":144.81266400000001},{"$f":"Mitoitus!$G$24*Ulkoseinät*(TS-Data!M135)*Data!M138/1000","v":211.52515200000002},{"$f":"Mitoitus!$G$24*Ulkoseinät*(TS-Data!N135)*Data!N138/1000","v":283.53959999999995},{"$f":"Mitoitus!$G$24*Ulkoseinät*(TS-Data!O135)*Data!O138/1000","v":331.43704560000003},{"$f":"SUM(V4:AG4)","v":2586.2177111999999}]
[null,null,"Qyläpohja 1",{"$f":"U_Yläpohja*Yläpohja*(TS-TU)*Tuntia/1000","v":250.12988351999994},230.71910399999999,236.20595327999993,159.95231999999999,102.57629184,65.628921599999984,37.063699199999988,49.58521919999999,101.49701759999999,148.25479680000001,198.72863999999996,232.29923904,{"$f":"SUM(D5:O5)","v":1812.6410860799995},null,null,null,null,"Qyläpohja 1",{"$f":"Mitoitus!$G$26*Yläpohja*(TS-Data!D135)*Data!D138/1000","v":250.12988351999994},{"$f":"Mitoitus!$G$26*Yläpohja*(TS-Data!E135)*Data!E138/1000","v":230.71910399999999},{"$f":"Mitoitus!$G$26*Yläpohja*(TS-Data!F135)*Data!F138/1000","v":236.20595327999993},{"$f":"Mitoitus!$G$26*Yläpohja*(TS-Data!G135)*Data!G138/1000","v":159.95231999999999},{"$f":"Mitoitus!$G$26*Yläpohja*(TS-Data!H135)*Data!H138/1000","v":102.57629184},{"$f":"Mitoitus!$G$26*Yläpohja*(TS-Data!I135)*Data!I138/1000","v":65.628921599999984},{"$f":"Mitoitus!$G$26*Yläpohja*(TS-Data!J135)*Data!J138/1000","v":37.063699199999988},{"$f":"Mitoitus!$G$26*Yläpohja*(TS-Data!K135)*Data!K138/1000","v":49.58521919999999},{"$f":"Mitoitus!$G$26*Yläpohja*(TS-Data!L135)*Data!L138/1000","v":101.49701759999999},{"$f":"Mitoitus!$G$26*Yläpohja*(TS-Data!M135)*Data!M138/1000","v":148.25479680000001},{"$f":"Mitoitus!$G$26*Yläpohja*(TS-Data!N135)*Data!N138/1000","v":198.72863999999996},{"$f":"Mitoitus!$G$26*Yläpohja*(TS-Data!O135)*Data!O138/1000","v":232.29923904},{"$f":"SUM(V5:AG5)","v":1812.6410860799995}]
[null,null,"Välitulos, ikkunat, ΣUiAi",null,null,null,null,null,null,null,null,null,null,null,null,{"$f":"Mitoitus!F36*Mitoitus!H36+Mitoitus!F38*Mitoitus!H38+Mitoitus!F40*Mitoitus!H40+Mitoitus!F42*Mitoitus!H42","v":25.432000000000002},null,null,null,null,"Välitulos, ikkunat, ΣUiAi",null,null,null,null,null,null,null,null,null,null,null,null,{"$f":"Mitoitus!F36*Mitoitus!G36+Mitoitus!F38*Mitoitus!G38+Mitoitus!F40*Mitoitus!G40+Mitoitus!F42*Mitoitus!G42","v":25.432000000000002}]
[null,null,"Qikkuna 1",{"$f":"$P$6*(TS-TU)*Tuntia/1000","v":472.46755776000003},435.80275200000005,446.16680063999996,302.13216000000006,193.75521792000004,123.96574080000002,70.009209599999991,93.660969600000001,191.71658880000004,280.03683840000002,375.37632000000002,438.78745152000005,{"$f":"SUM(D7:O7)","v":3423.8776070399999},null,null,null,null,"Qikkuna 1",{"$f":"$AH$6*(TS-D135)*D138/1000","v":472.46755776000003},435.80275200000005,446.16680063999996,302.13216000000006,193.75521792000004,123.96574080000002,70.009209599999991,93.660969600000001,191.71658880000004,280.03683840000002,375.37632000000002,438.78745152000005,{"$f":"SUM(V7:AG7)","v":3423.8776070399999}]
[null,null,"Qkattoikkuna",{"$f":"Mitoitus!$H$30*Mitoitus!$F$30*(TS-TU)*Tuntia/1000","v":0},{"$f":"Mitoitus!$H$30*Mitoitus!$F$30*(TS-Data!E135)*Data!E138/1000","v":0},{"$f":"Mitoitus!$H$30*Mitoitus!$F$30*(TS-Data!F135)*Data!F138/1000","v":0},{"$f":"Mitoitus!$H$30*Mitoitus!$F$30*(TS-Data!G135)*Data!G138/1000","v":0},{"$f":"Mitoitus!$H$30*Mitoitus!$F$30*(TS-Data!H135)*Data!H138/1000","v":0},{"$f":"Mitoitus!$H$30*Mitoitus!$F$30*(TS-Data!I135)*Data!I138/1000","v":0},{"$f":"Mitoitus!$H$30*Mitoitus!$F$30*(TS-Data!J135)*Data!J138/1000","v":0},{"$f":"Mitoitus!$H$30*Mitoitus!$F$30*(TS-Data!K135)*Data!K138/1000","v":0},{"$f":"Mitoitus!$H$30*Mitoitus!$F$30*(TS-Data!L135)*Data!L138/1000","v":0},{"$f":"Mitoitus!$H$30*Mitoitus!$F$30*(TS-Data!M135)*Data!M138/1000","v":0},{"$f":"Mitoitus!$H$30*Mitoitus!$F$30*(TS-Data!N135)*Data!N138/1000","v":0},{"$f":"Mitoitus!$H$30*Mitoitus!$F$30*(TS-Data!O135)*Data!O138/1000","v":0},{"$f":"SUM(D8:O8)","v":0},null,null,null,null,"Qkattoikkuna",{"$f":"Mitoitus!$G$30*Mitoitus!$F$30*(TS-Data!D135)*Data!D138/1000","v":0},{"$f":"Mitoitus!$G$30*Mitoitus!$F$30*(TS-Data!E135)*Data!E138/1000","v":0},{"$f":"Mitoitus!$G$30*Mitoitus!$F$30*(TS-Data!F135)*Data!F138/1000","v":0},{"$f":"Mitoitus!$G$30*Mitoitus!$F$30*(TS-Data!G135)*Data!G138/1000","v":0},{"$f":"Mitoitus!$G$30*Mitoitus!$F$30*(TS-Data!H135)*Data!H138/1000","v":0},{"$f":"Mitoitus!$G$30*Mitoitus!$F$30*(TS-Data!I135)*Data!I138/1000","v":0},{"$f":"Mitoitus!$G$30*Mitoitus!$F$30*(TS-Data!J135)*Data!J138/1000","v":0},{"$f":"Mitoitus!$G$30*Mitoitus!$F$30*(TS-Data!K135)*Data!K138/1000","v":0},{"$f":"Mitoitus!$G$30*Mitoitus!$F$30*(TS-Data!L135)*Data!L138/1000","v":0},{"$f":"Mitoitus!$G$30*Mitoitus!$F$30*(TS-Data!M135)*Data!M138/1000","v":0},{"$f":"Mitoitus!$G$30*Mitoitus!$F$30*(TS-Data!N135)*Data!N138/1000","v":0},{"$f":"Mitoitus!$G$30*Mitoitus!$F$30*(TS-Data!O135)*Data!O138/1000","v":0},{"$f":"SUM(V8:AG8)","v":0}]
[null,null,"Qovi",{"$f":"Mitoitus!$H$32*Mitoitus!$F$32*(TS-TU)*Tuntia/1000","v":152.33697599999996},{"$f":"Mitoitus!$H$32*Mitoitus!$F$32*(TS-TU)*Tuntia/1000","v":140.51519999999999},{"$f":"Mitoitus!$H$32*Mitoitus!$F$32*(TS-TU)*Tuntia/1000","v":143.85686399999997},{"$f":"Mitoitus!$H$32*Mitoitus!$F$32*(TS-TU)*Tuntia/1000","v":97.415999999999983},{"$f":"Mitoitus!$H$32*Mitoitus!$F$32*(TS-TU)*Tuntia/1000","v":62.472191999999993},{"$f":"Mitoitus!$H$32*Mitoitus!$F$32*(TS-TU)*Tuntia/1000","v":39.970079999999996},{"$f":"Mitoitus!$H$32*Mitoitus!$F$32*(TS-TU)*Tuntia/1000","v":22.572959999999995},{"$f":"Mitoitus!$H$32*Mitoitus!$F$32*(TS-TU)*Tuntia/1000","v":30.198959999999992},{"$f":"Mitoitus!$H$32*Mitoitus!$F$32*(TS-TU)*Tuntia/1000","v":61.814879999999995},{"$f":"Mitoitus!$H$32*Mitoitus!$F$32*(TS-TU)*Tuntia/1000","v":90.291839999999993},{"$f":"Mitoitus!$H$32*Mitoitus!$F$32*(TS-TU)*Tuntia/1000","v":121.032},{"$f":"Mitoitus!$H$32*Mitoitus!$F$32*(TS-TU)*Tuntia/1000","v":141.477552},{"$f":"SUM(D9:O9)","v":1103.9555039999998},null,null,null,null,"Qovi",{"$f":"Mitoitus!$G$32*Mitoitus!$F$32*(TS-Data!D135)*Data!D138/1000","v":152.33697599999996},{"$f":"Mitoitus!$G$32*Mitoitus!$F$32*(TS-Data!E135)*Data!E138/1000","v":140.51519999999999},{"$f":"Mitoitus!$G$32*Mitoitus!$F$32*(TS-Data!F135)*Data!F138/1000","v":143.85686399999997},{"$f":"Mitoitus!$G$32*Mitoitus!$F$32*(TS-Data!G135)*Data!G138/1000","v":97.415999999999983},{"$f":"Mitoitus!$G$32*Mitoitus!$F$32*(TS-Data!H135)*Data!H138/1000","v":62.472191999999993},{"$f":"Mitoitus!$G$32*Mitoitus!$F$32*(TS-Data!I135)*Data!I138/1000","v":39.970079999999996},{"$f":"Mitoitus!$G$32*Mitoitus!$F$32*(TS-Data!J135)*Data!J138/1000","v":22.572959999999995},{"$f":"Mitoitus!$G$32*Mitoitus!$F$32*(TS-Data!K135)*Data!K138/1000","v":30.198959999999992},{"$f":"Mitoitus!$G$32*Mitoitus!$F$32*(TS-Data!L135)*Data!L138/1000","v":61.814879999999995},{"$f":"Mitoitus!$G$32*Mitoitus!$F$32*(TS-Data!M135)*Data!M138/1000","v":90.291839999999993},{"$f":"Mitoitus!$G$32*Mitoitus!$F$32*(TS-Data!N135)*Data!N138/1000","v":121.032},{"$f":"Mitoitus!$G$32*Mitoitus!$F$32*(TS-Data!O135)*Data!O138/1000","v":141.477552},{"$f":"SUM(V9:AG9)","v":1103.9555039999998}]
[null,null,"Qalapohja",{"$f":"Mitoitus!$H$28*Mitoitus!$F$28*(TS-AlapT)*Tuntia/1000","v":202.45906560000003},{"$f":"Mitoitus!$H$28*Mitoitus!$F$28*(TS-AlapT)*Tuntia/1000","v":199.95655679999999},{"$f":"Mitoitus!$H$28*Mitoitus!$F$28*(TS-AlapT)*Tuntia/1000","v":240.3018816},{"$f":"Mitoitus!$H$28*Mitoitus!$F$28*(TS-AlapT)*Tuntia/1000","v":250.86124800000002},{"$f":"Mitoitus!$H$28*Mitoitus!$F$28*(TS-AlapT)*Tuntia/1000","v":259.22328960000004},{"$f":"Mitoitus!$H$28*Mitoitus!$F$28*(TS-AlapT)*Tuntia/1000","v":232.55020800000003},{"$f":"Mitoitus!$H$28*Mitoitus!$F$28*(TS-AlapT)*Tuntia/1000","v":202.45906560000003},{"$f":"Mitoitus!$H$28*Mitoitus!$F$28*(TS-AlapT)*Tuntia/1000","v":183.53765760000002},{"$f":"Mitoitus!$H$28*Mitoitus!$F$28*(TS-AlapT)*Tuntia/1000","v":159.306048},{"$f":"Mitoitus!$H$28*Mitoitus!$F$28*(TS-AlapT)*Tuntia/1000","v":145.69484160000002},{"$f":"Mitoitus!$H$28*Mitoitus!$F$28*(TS-AlapT)*Tuntia/1000","v":140.99500800000001},{"$f":"Mitoitus!$H$28*Mitoitus!$F$28*(TS-AlapT)*Tuntia/1000","v":164.6162496},{"$f":"SUM(D10:O10)","v":2381.9611200000004},null,null,null,null,"Qalapohja",{"$f":"Mitoitus!$G$28*Mitoitus!$F$28*(TS-Data!D140)*Data!D138/1000","v":190.54970879999996},{"$f":"Mitoitus!$G$28*Mitoitus!$F$28*(TS-Data!E140)*Data!E138/1000","v":188.19440640000002},{"$f":"Mitoitus!$G$28*Mitoitus!$F$28*(TS-Data!F140)*Data!F138/1000","v":226.16647679999997},{"$f":"Mitoitus!$G$28*Mitoitus!$F$28*(TS-Data!G140)*Data!G138/1000","v":236.104704},{"$f":"Mitoitus!$G$28*Mitoitus!$F$28*(TS-Data!H140)*Data!H138/1000","v":243.97486079999999},{"$f":"Mitoitus!$G$28*Mitoitus!$F$28*(TS-Data!I140)*Data!I138/1000","v":218.87078399999999},{"$f":"Mitoitus!$G$28*Mitoitus!$F$28*(TS-Data!J140)*Data!J138/1000","v":190.54970879999996},{"$f":"Mitoitus!$G$28*Mitoitus!$F$28*(TS-Data!K140)*Data!K138/1000","v":172.74132479999997},{"$f":"Mitoitus!$G$28*Mitoitus!$F$28*(TS-Data!L140)*Data!L138/1000","v":149.935104},{"$f":"Mitoitus!$G$28*Mitoitus!$F$28*(TS-Data!M140)*Data!M138/1000","v":137.12455679999999},{"$f":"Mitoitus!$G$28*Mitoitus!$F$28*(TS-Data!N140)*Data!N138/1000","v":132.70118400000001},{"$f":"Mitoitus!$G$28*Mitoitus!$F$28*(TS-Data!O140)*Data!O138/1000","v":154.93294079999998},{"$f":"SUM(V10:AG10)","v":2241.8457599999997}]
[null,null,"Välitulos, kylmäsillat, ΣIkΨk",null,null,null,null,null,null,null,null,null,null,null,null,{"$f":"Mitoitus!F46*Mitoitus!H46+Mitoitus!F48*Mitoitus!H48+Mitoitus!F50*Mitoitus!H50+Mitoitus!F52*Mitoitus!H52+Mitoitus!F54*Mitoitus!H54+Mitoitus!F56*Mitoitus!H56+Mitoitus!F58*Mitoitus!H58","v":12.726086179200001},null,null,null,null,"Välitulos, kylmäsillat, ΣIkΨk",null,null,null,null,null,null,null,null,null,null,null,null,{"$f":"P11","v":12.726086179200001}]
[null,null,"Qkylmäsillat",{"$f":"$P$11*(TS-TU)*Tuntia/1000","v":236.42115668960025},218.07421276677124,223.2603474065188,151.18590380889603,96.954451121405981,62.032034471892473,35.03237003410176,46.867630180757757,95.934328053281291,140.12948013640704,187.83703200499204,219.56774624076215,{"$f":"SUM(D12:O12)","v":1713.2966929153868},null,null,null,null,"Qkylmäsillat",null,null,null,null,null,null,null,null,null,null,null,null,{"$f":"P12","v":1713.2966929153868}]
[]
[null,null,"Qjoht",{"$f":"SUM(D4:D12)","v":1670.6918723696003},{"$f":"SUM(E4:E12)","v":1554.2503855667715},{"$f":"SUM(F4:F12)","v":1626.8028661265187},1189.7624318088961,861.33398008140603,617.78420887189259,420.01859243410172,474.59702458075782,755.08152645328141,1015.9329489364072,1307.5086000049921,1528.1852840007621,{"$f":"P4+P5+P7+P8+P9+P10+P12","v":13021.949721235385},null,null,null,null,"Qjoht",null,null,null,null,null,null,null,null,null,null,null,null,{"$f":"AH4+AH5+AH7+AH8+AH9+AH10+AH12","v":12881.834361235386}]
[]
[null,null,"Kerroslukumäärän mukaan määrittyvä kerroin x",null,null,null,null,null,null,null,null,null,null,null,null,{"$f":"CHOOSE(Kerroslukumäärä,35,24,20,20,15,15,15,15,15,15,15,15,15,15,15)","v":35},null,null,null,null,"Kerroslukumäärän mukaan määrittyvä kerroin x",null,null,null,null,null,null,null,null,null,null,null,null,35]
[null,null,"qv,vuotoilma",null,null,null,null,null,null,null,null,null,null,null,null,{"$f":"Mitoitus!$U$25/(3600*Data!$P$16)*(Mitoitus!$F$24+Mitoitus!$F$26+Mitoitus!$F$28+Mitoitus!$F$30+Mitoitus!$F$32+Mitoitus!$F$36+Mitoitus!$F$38+Mitoitus!$F$40+Mitoitus!$F$42)","v":1.4153396825396824E-2},null,null,null,null,"qv,vuotoilma",null,null,null,null,null,null,null,null,null,null,null,null,1.4153396825396824E-2]
[null,null,"Qvuotoilma",{"$f":"1.2*1000*$P$17*(TS-D135)*D138/1000","v":315.52473256228564},291.03912959999997,297.96048032914274,201.77082514285712,129.39420350171426,82.787180982857123,46.75376493714284,62.548955794285696,128.03275995428569,187.01505974857142,250.68496457142854,293.03238078171427,{"$f":"SUM(D18:O18)","v":2286.5444379062856},null,null,null,null,"Qvuotoilma",null,null,null,null,null,null,null,null,null,null,null,null,2286.5444379062856]
[]
[null,null,"Ulkoilmavirta",null,null,null,null,null,null,null,null,null,null,null,null,{"$f":"D169*Mitoitus!G16/1000","v":5.9840000000000004E-2},null,null,null,null,"Ulkoilmavirta"]
[null,null,"Ulkoilmavirta käyttöajan ulkopuolella",null,null,null,null,null,null,null,null,null,null,null,null,{"$f":"0.15*Mitoitus!G16/1000","v":2.2439999999999998E-2},null,null,null,null,"Ulkoilmavirta käyttöajan ulkopuolella"]
[null,null,"ɸlto",{"$f":"IV_LTO_Vuosi_HS*IV24h/24*IV7d/7*1.2*1000*UlkoIlmaVirta*(TS-TU)+IV_LTO_Vuosi_HS*IV_Ei_Kaytto_h/24*IV_ei_Kaytto_d/7*1.2*1000*UlkoIlmaVirta_ei_Kaytto*(TS-TU)","v":1093.7579135999999},{"$f":"IV_LTO_Vuosi_HS*IV24h/24*IV7d/7*1.2*1000*UlkoIlmaVirta*(TS-TU)+IV_LTO_Vuosi_HS*IV_Ei_Kaytto_h/24*IV_ei_Kaytto_d/7*1.2*1000*UlkoIlmaVirta_ei_Kaytto*(TS-TU)","v":1116.97344},1032.8719103999999,722.74752000000001,448.54149120000005,296.54549759999998,162.07065599999999,216.82425599999999,458.61615360000008,648.28262400000006,897.95904000000007,1015.7887872000001]
[null,null,"Tlto",{"$f":"TU+D22/(IV24h/24*IV7d/7*1000*1.2*UlkoIlmaVirta+IV_Ei_Kaytto_h/7*IV_ei_Kaytto_d/24*1000*1.2*UlkoIlmaVirta_ei_Kaytto)","v":11.261699999999998},11.054999999999998,11.803799999999997,14.565,17.006399999999999,18.3597,19.557000000000002,19.069500000000001,16.916699999999999,15.228000000000002,13.004999999999999,11.955900000000002]
[null,null,"Qiv negatiivisia ei poistettu",{"$f":"IV24h/24*IV7d/7*1.2*1000*UlkoIlmaVirta*(Tuloilman_lämpötila_jälkilämmityspatterin_jälkeen-0.5-Tlto)*Tuntia/1000+IV_Ei_Kaytto_h/24*IV_ei_Kaytto_d/7*1.2*1000*UlkoIlmaVirta_ei_Kaytto*(Tuloilman_lämpötila_jälkilämmityspatterin_jälkeen-0.5-Tlto)*Tuntia/1000","v":333.28212572160021},311.00332032000011,304.3203508224002,151.74466560000005,26.370655027200037,-44.448003072000006,-109.89553766400013,-83.850776064000087,30.157636608000065,121.38194534399993,232.39941120000006,296.19438520319994]
[null,null,"Qiv",{"$f":"MAX(D24,0)","v":333.28212572160021},{"$f":"MAX(E24,0)","v":311.00332032000011},304.3203508224002,151.74466560000005,26.370655027200037,0,0,0,30.157636608000065,121.38194534399993,232.39941120000006,296.19438520319994,{"$f":"SUM(D25:O25)","v":1806.8544958464006},null,null,null,null,"Qiv",null,null,null,null,null,null,null,null,null,null,null,null,1806.8544958464006]
[null,null,"Qiv,tuloilma",{"$f":"IF(Tuloilman_lämpötila_jälkilämmityspatterin_jälkeen>TU,1.2*1000*UlkoIlmaVirta*(TS-Tuloilman_lämpötila_jälkilämmityspatterin_jälkeen)*Tuntia/1000,IF(Tuloilman_lämpötila_jälkilämmityspatterin_jälkeen<=TU,1.2*1000*UlkoIlmaVirta*(TS-TU)*Tuntia/1000))","v":160.27545600000005},144.76492800000003,160.27545600000005,155.10528000000002,160.27545600000005,155.10528000000002,160.27545600000005,160.27545600000005,155.10528000000002,160.27545600000005,155.10528000000002,160.27545600000005,{"$f":"SUM(D26:O26)","v":1887.1142400000003},null,null,null,null,"Qiv,tuloilma",null,null,null,null,null,null,null,null,null,null,null,null,1887.1142400000003]
[null,null,"Qiv,korvausilma",null,null,null,null,null,null,null,null,null,null,null,null,null,null,null,null,null,"Qiv,korvausilma"]
[]
[null,null,"Qtila",{"$f":"D14+D18+D26+D27","v":2146.492060931886},{"$f":"E14+E18+E26+E27","v":1990.0544431667715},2085.0388024556614,1546.6385369517532,1151.0036395831203,855.67666985474966,627.04781337124462,697.42143637504364,1038.2195664075671,1363.2234646849788,1713.2988445764206,1981.4931207824764,{"$f":"P14+P18+P26+P27","v":17195.608399141671},null,null,null,null,"Qtila",null,null,null,null,null,null,null,null,null,null,null,null,{"$f":"AH14+AH18+AH26+AH27","v":17055.493039141671}]
[]
[null,null,"Aaurinkokeräin",null,null,null,null,null,null,null,null,null,null,null,null,{"$f":"Mitoitus!U53","v":5},null,null,null,null,"Aaurinkokeräin",null,null,null,null,null,null,null,null,null,null,null,null,5]
[null,null,"qaurinkokeräin",null,null,null,null,null,null,null,null,null,null,null,null,390,null,null,null,null,"qaurinkokeräin",null,null,null,null,null,null,null,null,null,null,null,null,390]
[null,null,"kaurinkokeräin",null,null,null,null,null,null,null,null,null,null,null,null,{"$f":"CHOOSE(Aurinkokeräimen_suuntausV,1,0.8,0.6)","v":1},null,null,null,null,"kaurinkokeräin",null,null,null,null,null,null,null,null,null,null,null,null,1]
[null,null,"Qlkv,LTO - 45 % sääntöä ei huomioitu",null,null,null,null,null,null,null,null,null,null,null,null,{"$f":"P31*P32*P33*P38","v":1170},null,null,null,null,"Qlkv,LTO - 40 % sääntöä ei huomioitu",null,null,null,null,null,null,null,null,null,null,null,null,1170]
[null,null,"Qlkv 45%",null,null,null,null,null,null,null,null,null,null,null,null,{"$f":"P79*0.45","v":4322.9195999999993},null,null,null,null,"Qlkv 40%",null,null,null,null,null,null,null,null,null,null,null,null,4322.9195999999993]
[null,null,"Qlkv,LTO - maks 45 %",null,null,null,null,null,null,null,null,null,null,null,null,{"$f":"MIN(P34:P35)","v":1170},null,null,null,null,"Qlkv,LTO - maks 40 %",null,null,null,null,null,null,null,null,null,null,null,null,1170]
[null,null,"Qaurinko,lkv",{"$f":"$P$37*D143","v":0},{"$f":"$P$37*E143","v":23.400000000000002},81.900000000000006,140.4,198.9,210.6,222.3,152.1,105.3,35.1,0,0,{"$f":"CHOOSE(Aurinkolämpö__tukemaan_käyttöveden_lämmitystä_V,0,Data!P36)","v":1170},null,null,null,null,"Qaurinko,lkv",null,null,null,null,null,null,null,null,null,null,null,null,1170]
[null,null,"ηaurinkokeräin",null,null,null,null,null,null,null,null,null,null,null,null,0.6,null,null,null,null,"ηmuu tuotto (aurinko,lkv)",null,null,null,null,null,null,null,null,null,null,null,null,0.6]
[]
[null,null,"Waurinko pumput",null,null,null,null,null,null,null,null,null,null,null,null,{"$f":"CHOOSE(Aurinkolämpö__tukemaan_käyttöveden_lämmitystä_V,0,(50+5*P31)*2000/1000)","v":150},null,null,null,null,"Waurinko pumput",null,null,null,null,null,null,null,null,null,null,null,null,150]
[]
[null,null,"Vlkv",{"$f":"$P$42*D138/8760","v":7.6234520547945204},6.8856986301369867,7.6234520547945204,7.3775342465753431,7.6234520547945204,7.3775342465753431,7.6234520547945204,7.6234520547945204,7.3775342465753431,7.6234520547945204,7.3775342465753431,7.6234520547945204,{"$f":"G169*Mitoitus!G16/1000","v":89.76},null,null,null,null,"Vlkv",null,null,null,null,null,null,null,null,null,null,null,null,89.76]
[null,null,"Qlkv,netto",{"$f":"$P$43*D138/8760","v":356.71232876712327},322.1917808219178,356.71232876712327,345.20547945205482,356.71232876712327,345.20547945205482,356.71232876712327,356.71232876712327,345.20547945205482,356.71232876712327,345.20547945205482,356.71232876712327,{"$f":"IF(AND(Lämmitetty_nettopinta_ala__Anetto>120,C169<4),4200,4.2*1000*P42*50/3600)","v":4200},null,null,null,null,"Qlkv,netto",null,null,null,null,null,null,null,null,null,null,null,null,4200]
[null,null,"Qlkv,netto (poislukien aurinkolämpö)",{"$f":"D43-D37","v":356.71232876712327},{"$f":"E43-E37","v":298.79178082191783},274.81232876712329,204.80547945205481,157.81232876712326,134.60547945205482,134.41232876712326,204.61232876712327,239.90547945205481,321.61232876712324,345.20547945205482,356.71232876712327,{"$f":"SUM(D44:O44)","v":3030},null,null,null,null,"Qlkv,netto (poislukien aurinkolämpö)",null,null,null,null,null,null,null,null,null,null,null,null,3030]
[]
[null,null,"Wvalaistus = Qvalaistus",{"$f":"$P$46*D138/8760","v":66.781440000000018},60.318720000000013,66.781440000000018,64.627200000000016,66.781440000000018,64.627200000000016,66.781440000000018,66.781440000000018,64.627200000000016,66.781440000000018,64.627200000000016,66.781440000000018,{"$f":"J169*K169*H169/24*I169/7*8760/1000*Mitoitus!G16","v":786.29760000000022},null,null,null,null,"Wvalaistus = Qvalaistus",null,null,null,null,null,null,null,null,null,null,null,null,786.29760000000022]
[null,null,"Wkuluttajalaitteet = Qkuluttajalaitteet",{"$f":"$P$47*D138/8760","v":200.34431999999995},180.95615999999998,200.34431999999995,193.88159999999996,200.34431999999995,193.88159999999996,200.34431999999995,200.34431999999995,193.88159999999996,200.34431999999995,193.88159999999996,200.34431999999995,{"$f":"L169*M169*Mitoitus!G16*H169/24*I169/7*8760/1000","v":2358.8927999999996},null,null,null,null,"Wkuluttajalaitteet = Qkuluttajalaitteet",null,null,null,null,null,null,null,null,null,null,null,null,2358.8927999999996]
[null,null,"Qhenk",{"$f":"$P$48*D138/8760","v":133.56288000000001},120.63744,133.56288000000001,129.2544,133.56288000000001,129.2544,133.56288000000001,133.56288000000001,129.2544,133.56288000000001,129.2544,133.56288000000001,{"$f":"N169*O169*Mitoitus!G16*H169/24*I169/7*8760/1000","v":1572.5952},null,null,null,null,"Qhenk",null,null,null,null,null,null,null,null,null,null,null,null,1572.5952]
[null,null,"Qsäh",{"$f":"D46+D47","v":267.12575999999996},{"$f":"E46+E47","v":241.27488},267.12575999999996,258.50879999999995,267.12575999999996,258.50879999999995,267.12575999999996,267.12575999999996,258.50879999999995,267.12575999999996,258.50879999999995,267.12575999999996,{"$f":"P46+P47","v":3145.1904},null,null,null,null,"Qsäh",null,null,null,null,null,null,null,null,null,null,null,null,3145.1904]
[null,null,"Qaur,pohjonen",{"$f":"D147*0.75*Mitoitus!$F$36*Mitoitus!$K$36","v":22.764819000000006},{"$f":"E147*0.75*Mitoitus!$F$36*Mitoitus!$K$36","v":63.521188500000022},{"$f":"F147*0.75*Mitoitus!$F$36*Mitoitus!$K$36","v":147.97132350000001},{"$f":"G147*0.75*Mitoitus!$F$36*Mitoitus!$K$36","v":161.18960550000003},{"$f":"H147*0.75*Mitoitus!$F$36*Mitoitus!$K$36","v":212.22686100000004},{"$f":"I147*0.75*Mitoitus!$F$36*Mitoitus!$K$36","v":259.22519700000004},{"$f":"J147*0.75*Mitoitus!$F$36*Mitoitus!$K$36","v":243.43669350000002},{"$f":"K147*0.75*Mitoitus!$F$36*Mitoitus!$K$36","v":183.58725000000001},{"$f":"L147*0.75*Mitoitus!$F$36*Mitoitus!$K$36","v":120.80041050000001},{"$f":"M147*0.75*Mitoitus!$F$36*Mitoitus!$K$36","v":65.724235500000006},{"$f":"N147*0.75*Mitoitus!$F$36*Mitoitus!$K$36","v":26.436564000000004},{"$f":"O147*0.75*Mitoitus!$F$36*Mitoitus!$K$36","v":15.421329000000005},{"$f":"SUM(D50:O50)","v":1522.3054770000003},null,null,null,null,"Qaur,pohjonen",null,null,null,null,null,null,null,null,null,null,null,null,1522.3054770000003]
[null,null,"Qaur,itä",{"$f":"D149*0.75*Mitoitus!$F$38*Mitoitus!$K$38","v":1.993233},{"$f":"E149*0.75*Mitoitus!$F$38*Mitoitus!$K$38","v":8.1827459999999999},{"$f":"F149*0.75*Mitoitus!$F$38*Mitoitus!$K$38","v":25.439947500000006},{"$f":"G149*0.75*Mitoitus!$F$38*Mitoitus!$K$38","v":41.910346500000003},{"$f":"H149*0.75*Mitoitus!$F$38*Mitoitus!$K$38","v":59.167548000000004},{"$f":"I149*0.75*Mitoitus!$F$38*Mitoitus!$K$38","v":57.489035999999999},{"$f":"J149*0.75*Mitoitus!$F$38*Mitoitus!$K$38","v":62.314758000000005},{"$f":"K149*0.75*Mitoitus!$F$38*Mitoitus!$K$38","v":48.152313000000007},{"$f":"L149*0.75*Mitoitus!$F$38*Mitoitus!$K$38","v":29.636227500000004},{"$f":"M149*0.75*Mitoitus!$F$38*Mitoitus!$K$38","v":9.1793625000000016},{"$f":"N149*0.75*Mitoitus!$F$38*Mitoitus!$K$38","v":2.6751285},{"$f":"O149*0.75*Mitoitus!$F$38*Mitoitus!$K$38","v":1.3637910000000002},347.50443750000005,null,null,null,null,"Qaur,itä",null,null,null,null,null,null,null,null,null,null,null,null,347.50443750000005]
[null,null,"Qaur,etelä",{"$f":"Data!D151*0.75*Mitoitus!$F$40*Mitoitus!$K$40","v":60.898513500000014},{"$f":"Data!E151*0.75*Mitoitus!$F$40*Mitoitus!$K$40","v":195.44174100000001},{"$f":"Data!F151*0.75*Mitoitus!$F$40*Mitoitus!$K$40","v":422.51294250000001},{"$f":"Data!G151*0.75*Mitoitus!$F$40*Mitoitus!$K$40","v":506.54344950000001},{"$f":"Data!H151*0.75*Mitoitus!$F$40*Mitoitus!$K$40","v":547.61454000000003},{"$f":"Data!I151*0.75*Mitoitus!$F$40*Mitoitus!$K$40","v":479.63480399999997},{"$f":"Data!J151*0.75*Mitoitus!$F$40*Mitoitus!$K$40","v":545.25413249999997},{"$f":"Data!K151*0.75*Mitoitus!$F$40*Mitoitus!$K$40","v":473.96982600000013},{"$f":"Data!L151*0.75*Mitoitus!$F$40*Mitoitus!$K$40","v":474.44190750000007},{"$f":"Data!M151*0.75*Mitoitus!$F$40*Mitoitus!$K$40","v":174.67015500000002},{"$f":"Data!N151*0.75*Mitoitus!$F$40*Mitoitus!$K$40","v":79.309692000000013},{"$f":"Data!O151*0.75*Mitoitus!$F$40*Mitoitus!$K$40","v":55.705617000000011},4015.9973205000001,null,null,null,null,"Qaur,etelä",null,null,null,null,null,null,null,null,null,null,null,null,4015.9973205000001]
[null,null,"Qaur,länsi",{"$f":"D153*0.75*Mitoitus!$F$42*Mitoitus!$K$42","v":5.9796989999999992},{"$f":"E153*0.75*Mitoitus!$F$42*Mitoitus!$K$42","v":24.548238000000001},{"$f":"F153*0.75*Mitoitus!$F$42*Mitoitus!$K$42","v":68.766538500000024},{"$f":"G153*0.75*Mitoitus!$F$42*Mitoitus!$K$42","v":126.83256300000001},{"$f":"H153*0.75*Mitoitus!$F$42*Mitoitus!$K$42","v":164.4417225},{"$f":"I153*0.75*Mitoitus!$F$42*Mitoitus!$K$42","v":174.98487600000004},{"$f":"J153*0.75*Mitoitus!$F$42*Mitoitus!$K$42","v":193.08133350000003},{"$f":"K153*0.75*Mitoitus!$F$42*Mitoitus!$K$42","v":124.000074},{"$f":"L153*0.75*Mitoitus!$F$42*Mitoitus!$K$42","v":93.314776499999994},{"$f":"M153*0.75*Mitoitus!$F$42*Mitoitus!$K$42","v":29.583774000000005},{"$f":"N153*0.75*Mitoitus!$F$42*Mitoitus!$K$42","v":8.0253855000000005},{"$f":"O153*0.75*Mitoitus!$F$42*Mitoitus!$K$42","v":4.5634544999999997},1018.1224350000001,null,null,null,null,"Qaur,länsi",null,null,null,null,null,null,null,null,null,null,null,null,1018.1224350000001]
[null,null,"Qaur",{"$f":"D53+D52+D51+D50","v":91.636264500000024},{"$f":"E53+E52+E51+E50","v":291.69391350000001},664.69075200000009,836.47596449999992,983.4506715,971.33391299999994,1044.0869175,829.70946300000026,718.19332200000008,279.15752700000002,116.44677000000001,77.054191500000016,6903.9296700000004,null,null,null,null,"Qaur",null,null,null,null,null,null,null,null,null,null,null,null,6903.9296700000004]
[null,null,"Qlvk,varastointi, kuorma",{"$f":"$P$72*0.5*D138/8760","v":55.205479452054796},49.863013698630134,55.205479452054796,53.424657534246577,55.205479452054796,53.424657534246577,55.205479452054796,55.205479452054796,53.424657534246577,55.205479452054796,53.424657534246577,55.205479452054796,650,null,null,null,null,"Qlvk,varastointi, kuorma",null,null,null,null,null,null,null,null,null,null,null,null,650]
[null,null,"Qlvk,kierto, kuorma",{"$f":"$P$76*0.5*D138/8760","v":166.95359999999999},150.79679999999999,166.95359999999999,161.56799999999998,166.95359999999999,161.56799999999998,166.95359999999999,166.95359999999999,161.56799999999998,166.95359999999999,161.56799999999998,166.95359999999999,0,null,null,null,null,"Qlvk,kierto, kuorma",null,null,null,null,null,null,null,null,null,null,null,null,0]
[null,null,"Qlämpökuorma",{"$f":"D48+D49+D54+D55+D56","v":714.48398395205481},{"$f":"E48+E49+E54+E55+E56","v":854.26604719863008},1287.5384714520549,1439.2318220342463,1606.2983909520549,1574.0897705342463,1666.9346369520549,1452.557182452055,1320.9491795342465,902.00524645205473,719.20262753424652,699.90191095205478,14237.459269999999,null,null,null,null,"Qlämpökuorma",null,null,null,null,null,null,null,null,null,null,null,null,14237.459269999999]
[null,null,"Htila",{"$f":"D29/(($P$133-D135)*D138)*1000","v":115.54144871328853},116.13296236967621,118.84951266653793,130.18842903634288,151.0788967446762,175.54502499892288,227.78545966697357,189.3726068141207,137.72412798572202,123.8033515588654,116.0771574916274,114.84679626359598,1716.9457743103496,null,null,null,null,"Htila",null,null,null,null,null,null,null,null,null,null,null,null,1716.9457743103496]
[null,null,"Crak",null,null,null,null,null,null,null,null,null,null,null,null,{"$f":"CHOOSE(RakennusluokkaV,CHOOSE(Rakennusvaipan_massiivisuusV,Lämmitetty_nettopinta_ala__Anetto*40,Lämmitetty_nettopinta_ala__Anetto*70,Lämmitetty_nettopinta_ala__Anetto*110,Lämmitetty_nettopinta_ala__Anetto*200),CHOOSE(Rakennusvaipan_massiivisuusV,Lämmitetty_nettopinta_ala__Anetto*40,Lämmitetty_nettopinta_ala__Anetto*70,Lämmitetty_nettopinta_ala__Anetto*110,Lämmitetty_nettopinta_ala__Anetto*200),CHOOSE(Rakennusvaipan_massiivisuusV,Lämmitetty_nettopinta_ala__Anetto*40,Lämmitetty_nettopinta_ala__Anetto*160,Lämmitetty_nettopinta_ala__Anetto*160,Lämmitetty_nettopinta_ala__Anetto*220),CHOOSE(Rakennusvaipan_massiivisuusV,Lämmitetty_nettopinta_ala__Anetto*70,Lämmitetty_nettopinta_ala__Anetto*110,Lämmitetty_nettopinta_ala__Anetto*110,Lämmitetty_nettopinta_ala__Anetto*160),CHOOSE(Rakennusvaipan_massiivisuusV,Lämmitetty_nettopinta_ala__Anetto*40,Lämmitetty_nettopinta_ala__Anetto*70,Lämmitetty_nettopinta_ala__Anetto*160,Lämmitetty_nettopinta_ala__Anetto*220),CHOOSE(Rakennusvaipan_massiivisuusV,Lämmitetty_nettopinta_ala__Anetto*40,Lämmitetty_nettopinta_ala__Anetto*70,Lämmitetty_nettopinta_ala__Anetto*160,Lämmitetty_nettopinta_ala__Anetto*220),CHOOSE(Rakennusvaipan_massiivisuusV,Lämmitetty_nettopinta_ala__Anetto*40,Lämmitetty_nettopinta_ala__Anetto*70,Lämmitetty_nettopinta_ala__Anetto*160,Lämmitetty_nettopinta_ala__Anetto*220),CHOOSE(Rakennusvaipan_massiivisuusV,Lämmitetty_nettopinta_ala__Anetto*40,Lämmitetty_nettopinta_ala__Anetto*70,Lämmitetty_nettopinta_ala__Anetto*160,Lämmitetty_nettopinta_ala__Anetto*220),CHOOSE(Rakennusvaipan_massiivisuusV,Lämmitetty_nettopinta_ala__Anetto*40,Lämmitetty_nettopinta_ala__Anetto*70,Lämmitetty_nettopinta_ala__Anetto*160,Lämmitetty_nettopinta_ala__Anetto*220),CHOOSE(Rakennusvaipan_massiivisuusV,Lämmitetty_nettopinta_ala__Anetto*40,Lämmitetty_nettopinta_ala__Anetto*70,Lämmitetty_nettopinta_ala__Anetto*160,Lämmitetty_nettopinta_ala__Anetto*220),CHOOSE(Rakennusvaipan_massiivisuusV,Lämmitetty_nettopinta_ala__Anetto*40,Lämmitetty_nettopinta_ala__Anetto*70,Lämmitetty_nettopinta_ala__Anetto*160,Lämmitetty_nettopinta_ala__Anetto*220))","v":5984},null,null,null,null,"Crak",null,null,null,null,null,null,null,null,null,null,null,null,5984]
[null,null,"τ",{"$f":"$P$59/D58","v":51.790937941665035},{"$f":"$P$59/E58","v":51.527145074898208},50.349386091212764,45.964146309266319,39.608443859058475,34.088120697449085,26.270333535550144,31.599079194561728,43.449176898185669,48.334717313002287,51.551917098173455,52.10419615245987,null,null,null,null,null,"τ"]
[null,null,"у",{"$f":"D57/D29","v":0.33286122830655429},{"$f":"E57/E29","v":0.42926767663664389},0.61751295464413047,0.93055474026323359,1.395563259499194,1.8395847707305688,2.6583852162564576,2.0827538511032109,1.2723215996641024,0.66167086308222778,0.41977652048907743,0.35321945032828017,null,null,null,null,null,"у"]
[null,null,"a",{"$f":"1+(D60/15)","v":4.4527291961110027},{"$f":"1+(E60/15)","v":4.4351430049932139},4.3566257394141843,4.0642764206177544,3.6405629239372317,3.272541379829939,2.7513555690366762,3.1066052796374484,3.896611793212378,4.2223144875334864,4.4367944732115632,4.4736130768306577,null,null,null,null,null,"a"]
[null,null,"ηlämpö",{"$f":"(1-D61^D62)/(1-D61^(D62+1))","v":0.99501042605629753},{"$f":"(1-E61^E62)/(1-E61^(E62+1))","v":0.98645019401384171},0.94933780792034894,0.83031083927507765,0.63986533587357775,0.50715183315234491,0.35982234834520099,0.45326419466015028,0.69092881740468537,0.93309873838334145,0.98755783004048225,0.99382915654236725,null,null,null,null,null,"ηlämpö"]
[null,null,"Qsis.lämpö",{"$f":"D63*D57","v":710.91901328253493},842.69090799852631,1222.3089501014106,1195.0097820646542,1027.8146594397242,798.30251267279698,599.8003356060434,658.39216150194773,912.68185446728637,841.6599574795672,710.25418620713367,695.58292582387162,{"$f":"SUM(D64:O64)","v":10215.417246645498},null,null,null,null,"Qsis.lämpö",null,null,null,null,null,null,null,null,null,null,null,null,10215.417246645498]
[]
[null,null,"Qlämmitys,tilat,netto",{"$f":"D29-D64","v":1435.5730476493511},1147.3635351682451,862.72985235425085,351.62875488709892,123.18898014339607,57.374157181952683,27.247477765201211,39.029274873095915,125.5377119402807,521.56350720541161,1003.0446583692869,1285.9101949586047,{"$f":"SUM(D66:O66)","v":6980.191152496177},null,null,null,null,"Qlämmitys,tilat,netto",null,null,null,null,null,null,null,null,null,null,null,null,{"$f":"AH29-AH64","v":6840.0757924961727}]
[]
[null,null,"ηtilat",null,null,null,null,null,null,null,null,null,null,null,null,{"$f":"CHOOSE(Tilojen_lämmönjakojärjestelmäV,0.9,0.85,0.85,0.9,0.8,0.8,0.8,0.8,0.75,0.85,0.85,0.9,0.8,0.9,0.95,0.85,0.8,0.85,0.8)","v":0.8},null,null,null,null,"ηtilat",null,null,null,null,null,null,null,null,null,null,null,null,0.8]
[null,null,"Qlämmitys,tilat",{"$f":"D66/$P$68","v":1794.4663095616888},{"$f":"E66/$P$68","v":1434.2044189603064},1078.4123154428135,439.53594360887365,153.98622517924508,71.717696477440853,34.059347206501513,48.786593591369893,156.92213992535088,651.95438400676449,1253.8058229616086,1607.3877436982559,{"$f":"SUM(D69:O69)","v":8725.2389406202201},null,null,null,null,"Qlämmitys,tilat",null,null,null,null,null,null,null,null,null,null,null,null,{"$f":"AH66/AH68","v":8550.0947406202158}]
[null,null,"Qlämmitys,tilat (Varaavat takat poisluettu)",null,null,null,null,null,null,null,null,null,null,null,null,{"$f":"P69-P89","v":8725.2389406202201},null,null,null,null,"Qlämmitys,tilat (Varaavat takat poisluettu)",null,null,null,null,null,null,null,null,null,null,null,null,{"$f":"AH69-AH89","v":8550.0947406202158}]
[]
[null,null,"Qlvk,varastointi",{"$f":"$P$72*D138/8760","v":110.41095890410959},{"$f":"$P$72*E138/8760","v":99.726027397260268},110.41095890410959,106.84931506849315,110.41095890410959,106.84931506849315,110.41095890410959,110.41095890410959,106.84931506849315,110.41095890410959,106.84931506849315,110.41095890410959,{"$f":"CHOOSE(Lämpimän_käyttöveden_varastointiV,0,440,220,640,320,830,420,1000,500,1300,650,1700,850,2100,1100,3000,1500,4000,2000)","v":1300},null,null,null,null,"Qlvk,varastointi",null,null,null,null,null,null,null,null,null,null,null,null,1300]
[null,null,"ɸlvk,kierto,omin",null,null,null,null,null,null,null,null,null,null,null,null,{"$f":"CHOOSE(Lämpimän_käyttöveden_kierto__ja_siirtojohdotV,0,0,0,0,40,10,6,15,8,5)","v":15},null,null,null,null,"ɸlvk,kierto,omin",null,null,null,null,null,null,null,null,null,null,null,null,15]
[null,null,"Llkv",null,null,null,null,null,null,null,null,null,null,null,null,{"$f":"D185*Mitoitus!G16","v":29.92},null,null,null,null,"Llkv",null,null,null,null,null,null,null,null,null,null,null,null,29.92]
[null,null,"ɸlvk,kierto,omin + lämmityslaitteita",null,null,null,null,null,null,null,null,null,null,null,null,{"$f":"CHOOSE(käyttöveteen_kytkettyjä_lämmityslaitteitaV,0,40)","v":0},null,null,null,null,"ɸlvk,kierto,omin + lämmityslaitteita",null,null,null,null,null,null,null,null,null,null,null,null,0]
[null,null,"Qlvk,kierto",{"$f":"$P$76*D138/8760","v":333.90719999999999},{"$f":"$P$76*E138/8760","v":301.59359999999998},333.90719999999999,323.13599999999997,333.90719999999999,323.13599999999997,333.90719999999999,333.90719999999999,323.13599999999997,333.90719999999999,323.13599999999997,333.90719999999999,{"$f":"((P73+P75)*P74)*8760/1000","v":3931.4879999999998},null,null,null,null,"Qlvk,kierto",null,null,null,null,null,null,null,null,null,null,null,null,3931.4879999999998]
[null,null,"Kierto",null,null,null,null,null,null,null,null,null,null,null,null,{"$f":"AND(Lämpimän_käyttöveden_kierto__ja_siirtojohdotV>6,Lämpimän_käyttöveden_kierto__ja_siirtojohdotV<11)","v":true},null,null,null,null,null,null,null,null,null,null,null,null,null,null,null,null,null,{"$f":"P77","v":true}]
[null,null,"ηlkv,siirto",null,null,null,null,null,null,null,null,null,null,null,null,{"$f":"IF(Kierto,$E$185,CHOOSE(Lämpimän_käyttöveden_kierto__ja_siirtojohdotV,$F$185,$G$185,$H$185,$I$185,$J$185,$K$185,$L$185,$M$185,$N$185,$O$185))","v":0.96},null,null,null,null,"ηlkv,siirto",null,null,null,null,null,null,null,null,null,null,null,null,{"$f":"P78","v":0.96}]
[null,null,"Qlämmitys,lkv",{"$f":"D43/$P$78+D72+D76","v":815.89350136986297},736.9360657534246,815.89350136986297,789.57435616438352,815.89350136986297,789.57435616438352,815.89350136986297,815.89350136986297,789.57435616438352,815.89350136986297,789.57435616438352,815.89350136986297,{"$f":"SUM(D79:O79)","v":9606.4879999999976},null,null,null,null,"Qlämmitys,lkv",null,null,null,null,null,null,null,null,null,null,null,null,9606.4879999999976]
[null,null,"Qlämmitys,lkv (poislukien aurinkolämpö)",{"$f":"D44/$P$78+D72+D76","v":815.89350136986297},{"$f":"E44/$P$78+E72+E76","v":712.5610657534246},730.58100136986309,643.32435616438352,608.70600136986297,570.19935616438352,584.33100136986297,657.45600136986297,679.88685616438352,779.33100136986297,789.57435616438352,815.89350136986297,{"$f":"SUM(D80:O80)","v":8387.7379999999994},null,null,null,null,"Qlämmitys,lkv (poislukien aurinkolämpö)",null,null,null,null,null,null,null,null,null,null,null,null,8387.7379999999994]
[]
[null,null,"ηmuu tuotto (tulisija)",null,null,null,null,null,null,null,null,null,null,null,null,0.6,null,null,null,null,"ηmuu tuotto (tulisija)",null,null,null,null,null,null,null,null,null,null,null,null,0.6]
[null,null,"Qmuu tuotto (tulisija)",null,null,null,null,null,null,null,null,null,null,null,null,{"$f":"Mitoitus!U35*2000","v":0},null,null,null,null,"Qmuu tuotto (tulisija)",null,null,null,null,null,null,null,null,null,null,null,null,0]
[]
[null,null,"Muu kuin pieni rakennus",null,null,null,null,null,null,null,null,null,null,null,null,{"$f":"IF(RakennusluokkaV=1,FALSE,TRUE)","v":false}]
[null,null,"ηtuotto",null,null,null,null,null,null,null,null,null,null,null,null,{"$f":"IF(AND(P85=FALSE,Lämmitys_tapa=A!I3),Data!D197,IF(AND(P85=FALSE,Lämmitys_tapa=A!I4),D198,IF(AND(P85=FALSE,Lämmitys_tapa=A!I5),D194,IF(AND(P85=FALSE,Lämmitys_tapa=A!I6),D195,IF(AND(P85=FALSE,Lämmitys_tapa=A!I7),D192,IF(AND(P85=FALSE,Lämmitys_tapa=A!I8),D196,IF(AND(P85=FALSE,Lämmitys_tapa=A!I9),D196,IF(AND(P85=TRUE,Lämmitys_tapa=A!I3),Data!F197,IF(AND(P85=TRUE,Lämmitys_tapa=A!I4),F198,IF(AND(P85=TRUE,Lämmitys_tapa=A!I5),F194,IF(AND(P85=TRUE,Lämmitys_tapa=A!I6),F195,IF(AND(P85=TRUE,Lämmitys_tapa=A!I7),F192,IF(AND(P85=TRUE,Lämmitys_tapa=A!I8),F196,IF(AND(P85=TRUE,Lämmitys_tapa=A!I9),F196))))))))))))))","v":0.94},null,null,null,null,"ηtuotto",null,null,null,null,null,null,null,null,null,null,null,null,0.94]
[null,null,"Qlämmitys",null,null,null,null,null,null,null,null,null,null,null,null,{"$f":"(P69+P25+P79-P37-P83)/P86","v":20179.341953687894},null,null,null,null,"Qlämmitys",null,null,null,null,null,null,null,null,null,null,null,null,20179.341953687894]
[]
[null,null,"Qtulisija",null,null,null,null,null,null,null,null,null,null,null,null,{"$f":"Mitoitus!U35*2000","v":0},null,null,null,null,"Qtulisija",null,null,null,null,null,null,null,null,null,null,null,null,0]
[]
[null,null,"etilat",null,null,null,null,null,null,null,null,null,null,null,null,{"$f":"IF(Mitoitus!Q33=A!J3,2,IF(Mitoitus!Q33=A!J4,2,IF(Mitoitus!Q33=A!J5,2,IF(Mitoitus!Q33=A!J6,2,IF(Mitoitus!Q33=A!J7,2,IF(Mitoitus!Q33=A!J8,2,IF(Mitoitus!Q33=A!J9,2.5,IF(Mitoitus!Q33=A!J10,2.5,IF(Mitoitus!Q33=A!J11,2.5,IF(Mitoitus!Q33=A!J12,2.5,IF(Mitoitus!Q33=A!J13,0.5,IF(Mitoitus!Q33=A!J14,0.5,IF(Mitoitus!Q33=A!J15,0.5,IF(Mitoitus!Q33=A!J16,0.5,IF(Mitoitus!Q33=A!J17,0.5,IF(Mitoitus!Q33=A!J18,0.5,IF(Mitoitus!Q33=A!J19,0.5,IF(Mitoitus!Q33=A!J20,0.5,IF(Mitoitus!Q33=A!J21,0.5)))))))))))))))))))","v":2.5},null,null,null,null,"etilat",null,null,null,null,null,null,null,null,null,null,null,null,2.5]
[null,null,"Wtilat",null,null,null,null,null,null,null,null,null,null,null,null,{"$f":"P91*Mitoitus!G16","v":374},null,null,null,null,"Wtilat",null,null,null,null,null,null,null,null,null,null,null,null,374]
[null,null,"Plkv,pumppu",null,null,null,null,null,null,null,null,null,null,null,null,{"$f":"(P76/8760)/(3*4.2)*200","v":7.1238095238095225},null,null,null,null,"Plkv,pumppu",null,null,null,null,null,null,null,null,null,null,null,null,7.1238095238095225]
[null,null,"Wlkv,pumppu",null,null,null,null,null,null,null,null,null,null,null,null,{"$f":"P93*8760/1000","v":62.404571428571423},null,null,null,null,"Wlkv,pumppu",null,null,null,null,null,null,null,null,null,null,null,null,62.404571428571423]
[null,null,"Wvalaistus",null,null,null,null,null,null,null,null,null,null,null,null,{"$f":"P46","v":786.29760000000022},null,null,null,null,"Wvalaistus",null,null,null,null,null,null,null,null,null,null,null,null,786.29760000000022]
[null,null,"Wkuluttajalaitteet",null,null,null,null,null,null,null,null,null,null,null,null,{"$f":"P47","v":2358.8927999999996},null,null,null,null,"Wkuluttajalaitteet",null,null,null,null,null,null,null,null,null,null,null,null,2358.8927999999996]
[null,null,"Wilmanvaihto",null,null,null,null,null,null,null,null,null,null,null,null,{"$f":"Mitoitus!$U$19*Data!$P$20*(Data!$P$169/24)*(Data!$Q$169/7)*8760+Mitoitus!$U$19*Data!$P$21*Data!$R$169/24*Data!$S$169/7*8760","v":917.34720000000004},null,null,null,null,"Wilmanvaihto",null,null,null,null,null,null,null,null,null,null,null,null,917.34720000000004]
[]
[null,null,"etuotto",null,null,null,null,null,null,null,null,null,null,null,null,{"$f":"IF(AND(P85=FALSE,Lämmitys_tapa=A!I3),Data!E197,IF(AND(P85=FALSE,Lämmitys_tapa=A!I4),E198,IF(AND(P85=FALSE,Lämmitys_tapa=A!I5),E194,IF(AND(P85=FALSE,Lämmitys_tapa=A!I6),E195,IF(AND(P85=FALSE,Lämmitys_tapa=A!I7),E192,IF(AND(P85=FALSE,Lämmitys_tapa=A!I8),E196,IF(AND(P85=FALSE,Lämmitys_tapa=A!I9),E196,IF(AND(P85=TRUE,Lämmitys_tapa=A!I3),Data!G197,IF(AND(P85=TRUE,Lämmitys_tapa=A!I4),G198,IF(AND(P85=TRUE,Lämmitys_tapa=A!I5),G194,IF(AND(P85=TRUE,Lämmitys_tapa=A!I6),G195,IF(AND(P85=TRUE,Lämmitys_tapa=A!I7),G192,IF(AND(P85=TRUE,Lämmitys_tapa=A!I8),G196,IF(AND(P85=TRUE,Lämmitys_tapa=A!I9),G196))))))))))))))","v":0.6},null,null,null,null,"etuotto",null,null,null,null,null,null,null,null,null,null,null,null,0.6]
[null,null,"Wtuotto,apu",null,null,null,null,null,null,null,null,null,null,null,null,{"$f":"P99*Mitoitus!G16","v":89.759999999999991},null,null,null,null,"Wtuotto,apu",null,null,null,null,null,null,null,null,null,null,null,null,89.759999999999991]
[]
[null,null,"Qlisälämmitys,tilat MLP",null,null,null,null,null,null,null,null,null,null,null,null,{"$f":"(1-Mitoitus!S45)*Data!P70","v":8725.2388533678295},null,null,null,null,"Qlisälämmitys,tilat MLP",null,null,null,null,null,null,null,null,null,null,null,null,{"$f":"(1-Mitoitus!S45)*Data!AH70","v":8550.0946551192683}]
[null,null,"QLP,lämmitys,tilat MLP",null,null,null,null,null,null,null,null,null,null,null,null,{"$f":"P70-P102","v":8.7252390585490502E-5},null,null,null,null,"QLP,lämmitys,tilat MLP",null,null,null,null,null,null,null,null,null,null,null,null,{"$f":"AH70-AH102","v":8.5500947534455918E-5}]
[null,null,"Qlisälämmitys,lkv MLP",null,null,null,null,null,null,null,null,null,null,null,null,{"$f":"(1-Mitoitus!S45)*Data!P80","v":8387.7379161226181},null,null,null,null,"Qlisälämmitys,lkv MLP",null,null,null,null,null,null,null,null,null,null,null,null,{"$f":"(1-Mitoitus!S45)*Data!AH80","v":8387.7379161226181}]
[null,null,"QLP,lämmitys,lkv MLP",null,null,null,null,null,null,null,null,null,null,null,null,{"$f":"P80-P104","v":8.387738125748001E-5},null,null,null,null,"QLP,lämmitys,lkv MLP",null,null,null,null,null,null,null,null,null,null,null,null,{"$f":"AH80-AH104","v":8.387738125748001E-5}]
[null,null,"WLP,lämmitys MLP",null,null,null,null,null,null,null,null,null,null,null,null,{"$f":"P103/(SPF_luku__tilat)+Data!P105/(SPF_luku__käyttövesi)+Data!P102+Data!P104","v":34225.953953787503},null,null,null,null,"WLP,lämmitys MLP",null,null,null,null,null,null,null,null,null,null,null,null,{"$f":"AH103/Mitoitus!S47+Data!AH105/Mitoitus!S49+Data!AH102+Data!AH104","v":33875.665450435481}]
[]
[]
[null,null,"Qlämmitys,tilat (kWh/m2vuosi)",null,null,null,null,null,null,null,null,null,null,null,null,{"$f":"P69/Mitoitus!G16","v":58.323789710028208},null,null,null,null,"Qlämmitys,tilat (kWh/m2vuosi)",null,null,null,null,null,null,null,null,null,null,null,null,{"$f":"AH69/Mitoitus!G16","v":57.153039710028182}]
[null,null,"Qlisälämmitys,tilat PILP",null,null,null,null,null,null,null,null,null,null,null,null,{"$f":"(1-Mitoitus!W45)*Data!P70","v":8725.2388533678295},null,null,null,null,"Qlisälämmitys,tilat PILP",null,null,null,null,null,null,null,null,null,null,null,null,{"$f":"(1-Mitoitus!W45)*Data!AH70","v":8550.0946551192683}]
[null,null,"QLP,lämmitys,tilat PILP",null,null,null,null,null,null,null,null,null,null,null,null,{"$f":"P70-P110","v":8.7252390585490502E-5},null,null,null,null,"QLP,lämmitys,tilat PILP",null,null,null,null,null,null,null,null,null,null,null,null,{"$f":"AH70-AH110","v":8.5500947534455918E-5}]
[null,null,"Qlisälämmitys,lkv PILP",null,null,null,null,null,null,null,null,null,null,null,null,{"$f":"(1-Mitoitus!W45)*Data!P80","v":8387.7379161226181},null,null,null,null,"Qlisälämmitys,lkv PILP",null,null,null,null,null,null,null,null,null,null,null,null,{"$f":"(1-Mitoitus!W45)*Data!AH80","v":8387.7379161226181}]
[null,null,"QLP,lämmitys,lkv PILP",null,null,null,null,null,null,null,null,null,null,null,null,{"$f":"P80-P112","v":8.387738125748001E-5},null,null,null,null,"QLP,lämmitys,lkv PILP",null,null,null,null,null,null,null,null,null,null,null,null,{"$f":"AH80-AH112","v":8.387738125748001E-5}]
[null,null,"WLP,lämmitys PILP",null,null,null,null,null,null,null,null,null,null,null,null,{"$f":"P111/(SPF_luku)+Data!P113/(SPF_luku)+Data!P112+Data!P110","v":34225.953953787503},null,null,null,null,"WLP,lämmitys PILP",null,null,null,null,null,null,null,null,null,null,null,null,{"$f":"AH111/Mitoitus!W47+Data!AH113/Mitoitus!W47+Data!AH112+Data!AH110","v":33875.665450435481}]
[]
[]
[null,null,"Waurinko,pumput",null,null,null,null,null,null,null,null,null,null,null,null,null,null,null,null,null,"Waurinko,pumput"]
[]
[null,null,"Fkäyttö",null,null,null,null,null,null,null,null,null,null,null,null,null,null,null,null,null,"Fkäyttö"]
[null,null,"Kmaks",null,null,null,null,null,null,null,null,null,null,null,null,null,null,null,null,null,"Kmaks"]
[null,null,"F2",null,null,null,null,null,null,null,null,null,null,null,null,null,null,null,null,null,"F2"]
[null,null,"F1",null,null,null,null,null,null,null,null,null,null,null,null,null,null,null,null,null,"F1"]
[null,null,"Fasento",null,null,null,null,null,null,null,null,null,null,null,null,null,null,null,null,null,"Fasento"]
[null,null,"Gaur",null,null,null,null,null,null,null,null,null,null,null,null,null,null,null,null,null,"Gaur"]
[null,null,"Pmaks",null,null,null,null,null,null,null,null,null,null,null,null,null,null,null,null,null,"Pmaks"]
[null,null,"Wpv",null,null,null,null,null,null,null,null,null,null,null,null,null,null,null,null,null,"Wpv"]
[]
[null,null,"Wlämmitys",null,null,null,null,null,null,null,null,null,null,null,null,{"$f":"P92+P100+P94+P40+P106","v":34902.118525216072},null,null,null,null,"Wlämmitys",null,null,null,null,null,null,null,null,null,null,null,null,{"$f":"AH92+AH100+AH94+AH40+AH106","v":34551.830021864051}]
[]
[]
[]
[]
[null,null,"Sisälämpötila, Ts , °C (Lämmitysraja)",null,null,null,null,null,null,null,null,null,null,null,"TS",{"$f":"CHOOSE(RakennusluokkaV,21,21,21,21,21,21,18,21,21,18,22)","v":21}]
[null,null,"Säävyöhyke I ja II"]
[null,null,"Ulkoilman keskilämpötila Tu , °C",-3.97,-4.5,-2.58,4.5,10.76,14.23,17.3,16.05,10.53,6.2,0.5,-2.19,5.3]
[null,null,"Auringon kokonaissäteilyenergia vaakatasolla Gsäteily, vaakapinta , kWh/m2",6.2,22.4,64.3,119.9,165.5,168.6,180.9,126.7,82,26.2,8.1,4.4000000000000004]
[null,null,"Normitukseen käytettävä lämmitystarveluku, S17, Kd",650,602,607,354,117,9,0,31,161,331,495,595]
[null,null,"Pituus, h",744,672,744,720,744,720,744,744,720,744,720,744]
[]
[null,null,"Alapohjan alapuolisen maan kuukausittainen keskilämpötila,  °C",{"$f":"5+P135","v":10.3},{"$f":"P135+5-1","v":9.3000000000000007},{"$f":"P135+5-2","v":8.3000000000000007},{"$f":"P135+5-3","v":7.3000000000000007},{"$f":"P135+5-3","v":7.3000000000000007},{"$f":"P135+5-2","v":8.3000000000000007},{"$f":"P135+5","v":10.3},{"$f":"P135+5+1","v":11.3},{"$f":"P135+5+2","v":12.3},{"$f":"P135+5+3","v":13.3},{"$f":"P135+5+3","v":13.3},{"$f":"P135+5+2","v":12.3}]
[]
[]
[null,null,"Auringon säteilyn kuukausittaisten energiaosuuksien suhde.",0,0.02,7.0000000000000007E-2,0.12,0.17,0.18,0.19,0.13,0.09,0.03,0,0,{"$f":"SUM(D143:O143)","v":1}]
[null,null,"Auringon kokonaissäteilyenergia vaakatasolle, Gsäteily, vaakapinta , kWh/m2",6.2,22.4,64.3,119.9,165.5,168.6,180.9,126.7,82,26.2,8.1,4.4000000000000004,975.2]
[]
[null,null,"Auringon kokonaissäteilyenergia pystypinnoille eri ilmansuuntiin, Gsäteily, pystypinta , kWh/m2"]
[null,null,"Pohjoiseen",6.2,17.3,40.299999999999997,43.9,57.8,70.599999999999994,66.3,50,32.9,17.899999999999999,7.2,4.2,{"$f":"SUM(D147:O147)","v":414.59999999999991}]
[null,null,"Koilliseen",4.7,13.8,38.1,56.3,82.1,87.9,91.1,66.400000000000006,37.5,15.6,5.5,3.2,502.2]
[null,null,"Itään",3.8,15.6,48.5,79.900000000000006,112.8,109.6,118.8,91.8,56.5,17.5,5.0999999999999996,2.6,662.50000000000011]
[null,null,"Kaakkoon",9.5,31,75.099999999999994,101.1,123.3,109.9,123.1,106,83.9,28.3,12.3,8.4,811.89999999999986]
[null,null,"Etelään",12.9,41.4,89.5,107.3,116,101.6,115.5,100.4,100.5,37,16.8,11.8,850.69999999999993]
[null,null,"Lounaaseen",9.5,30.9,69.400000000000006,101.6,117.5,110.9,128.6,92.8,87.3,30,12.3,8.8000000000000007,799.5999999999998]
[null,null,"Länteen",3.8,15.6,43.7,80.599999999999994,104.5,111.2,122.7,78.8,59.3,18.8,5.0999999999999996,2.9,646.99999999999989]
[null,null,"Luoteeseen",4.7,14,36.9,56.8,76.3,89.1,91.2,61.1,38.1,15.7,5.6,3.2,492.7]
[]
[null,null,null,"Ulko- ilmavirta, dm3/(sm2)","Lämmitys- raja",null,"LKV:n ominais- kulutus","h/24h","d/7d","Valaistus, käyttöaste","Valais- tusteho, W/m2","Kuluttaja- laitteet, käyttöaste","Kuluttaja- laitteet, teho W/m2","Ihmiset, käyttö- aste","Ihmiset, teho","IV h/24h","IV d/7d","Käyttöajan ulkopuolinen IV h/24h","Käyttöajan ulkopuolinen IV d/7d"]
[null,"Luokka 1 a)",{"$f":"A!A3","v":"Erillinen pientalo, 50 … 150 m2"},0.4,21,null,600,24,7,0.1,6,0.6,3,0.6,2,24,7,{"$f":"24-P157","v":0},{"$f":"7-Q157","v":0}]
[null,"Luokka 1 b)",{"$f":"A!A4","v":"Erillinen pientalo, yli 150 … 600 m2"},0.4,21,null,600,24,7,0.1,6,0.6,3,0.6,2,24,7,0,0]
[null,"Luokka 1 c)",{"$f":"A!A5","v":"Erillinen pientalo, yli 600 m2"},0.4,21,null,600,24,7,0.1,6,0.6,3,0.6,2,24,7,0,0]
[null,"Luokka 1 d)",{"$f":"A!A6","v":"Rivi- tai asuinkerrostalo, enintään kaksi kerrosta"},0.4,21,null,600,24,7,0.1,6,0.6,3,0.6,2,24,7,{"$f":"24-P160","v":0},{"$f":"7-Q160","v":0}]
[null,"Luokka 2",{"$f":"A!A7","v":"Asuinkerrostalo, vähintään kolme kerrosta"},0.5,21,null,600,24,7,0.1,9,0.6,4,0.6,3,24,7,{"$f":"24-P161","v":0},{"$f":"7-Q161","v":0}]
[null,"Luokka 3",{"$f":"A!A8","v":"Toimistorakennus, terveyskeskus"},2,21,null,103,11,5,0.65,10,0.65,12,0.65,5,13,5,11,2]
[null,"Luokka 4",{"$f":"A!A9","v":"Liikerakennus, tavaratalo, tms."},2,18,null,68,13,6,1,19,1,1,1,2,15,6,9,1]
[null,"Luokka 5",{"$f":"A!A10","v":"Majoitusliikerakennus"},2,21,null,685,24,7,0.3,11,0.3,4,0.3,4,24,7,0,0]
[null,"Luokka 6",{"$f":"A!A11","v":"Opetusrakennus tai päiväkoti"},3,21,null,188,8,5,0.6,14,0.6,8,0.6,14,10,5,14,2]
[null,"Luokka 7",{"$f":"A!A12","v":"Liikuntahalli pois lukien uima- ja jäähällit"},2,18,null,343,14,7,0.5,10,0.5,0,0.5,5,16,7,8,0]
[null,"Luokka 8",{"$f":"A!A13","v":"Sairaala"},4,22,null,515,24,7,0.6,7,0.6,9,0.6,8,24,7,0,0]
[null,"Luokka 9",{"$f":"A!A14","v":"Muu rakennus"}]
[null,null,{"$f":"MATCH(Rakennusluokka,C157:C167,0)","v":1},{"$f":"INDEX(D157:D167,C169)","v":0.4},null,null,{"$f":"INDEX(G157:G167,$C$169)","v":600},{"$f":"INDEX(H157:H167,$C$169)","v":24},7,0.1,6,0.6,3,{"$f":"INDEX(N157:N167,$C$169)","v":0.6},2,24,7,0,0]
[]
[null,null,null,"ηlkv,siirto"]
[null,null,null,"Kiertojoh- don ominais- pituus, m/m2","Kierto","eristämätön","suojaputkessa","eristetty perustaso","eristetty parempi"]
[null,"Luokka 1 a)",{"$f":"A!A3","v":"Erillinen pientalo, 50 … 150 m2"},0.2,0.96,0.75,0.85,0.89,0.92]
[null,"Luokka 1 b)",{"$f":"A!A4","v":"Erillinen pientalo, yli 150 … 600 m2"},0.2,0.96,0.75,0.85,0.89,0.92]
[null,"Luokka 1 c)",{"$f":"A!A5","v":"Erillinen pientalo, yli 600 m2"},0.2,0.96,0.75,0.86,0.89,0.92]
[null,"Luokka 1 d)",{"$f":"A!A6","v":"Rivi- tai asuinkerrostalo, enintään kaksi kerrosta"},0.2,0.96,0.75,0.78,0.89,0.92]
[null,"Luokka 2",{"$f":"A!A7","v":"Asuinkerrostalo, vähintään kolme kerrosta"},0.2,0.97,0.76,0.86,0.9,0.94]
[null,"Luokka 3",{"$f":"A!A8","v":"Toimistorakennus, terveyskeskus"},0.06,0.88,0.69,0.78,0.82,0.85]
[null,"Luokka 4",{"$f":"A!A9","v":"Liikerakennus, tavaratalo, tms."},0.06,0.87,0.68,0.77,0.81,0.84]
[null,"Luokka 5",{"$f":"A!A10","v":"Majoitusliikerakennus"},0.25,0.97,0.76,0.86,0.9,0.94]
[null,"Luokka 6",{"$f":"A!A11","v":"Opetusrakennus tai päiväkoti"},0.2,0.89,0.7,0.79,0.83,0.86]
[null,"Luokka 7",{"$f":"A!A12","v":"Liikuntahalli pois lukien uima- ja jäähällit"},0.06,0.98,0.77,0.87,0.91,0.95]
[null,"Luokka 8",{"$f":"A!A13","v":"Sairaala"},0.25,0.94,0.74,0.84,0.88,0.91]
[null,"Luokka 9",{"$f":"A!A14","v":"Muu rakennus"}]
[null,null,{"$f":"MATCH(Rakennusluokka,C173:C184,0)","v":1},{"$f":"INDEX(D173:D183,$C$185)","v":0.2},0.96,0.75,0.85,0.89,0.92,1,1,1,1,1,1]
[]
[]
[null,null,null,"Erilliset pientalot sekä rivi- ja ketjutalot",null,"Muut isommat rakennukset"]
[null,null,null,"ηtuotto","etuotto","ηtuotto","etuotto"]
[null,null,"Standardi öljy",0.81,0.99,0.9,0.24]
[null,null,"Standardi kaasu",0.81,0.59,0.9,0.11]
[null,null,"Kondenssi öljy",0.87,1.07,0.95,0.25]
[null,null,"Kondenssi kaasu",0.92,0.68,1.01,0.12]
[null,null,"Pellettikattila",0.75,0.77,0.84,0.13]
[null,null,"Puukattila energiavaraajalla",0.73,0.38,0.82,0.25]
[null,null,"Sähkökattila",0.88,0.02,0.88,0.02]
[null,null,"Kaukolämpö",0.94,0.6,0.97,7.0000000000000007E-2]
[null,null,"Suora sähkö",1,0,1,0]
[null,null,{"$f":"Lämmitys_tapa","v":"Kaukolämpö"},{"$f":"INDEX(D190:D198,LämmitystapaV)","v":0.81},null,{"$f":"INDEX(F190:F198,LämmitystapaV)","v":0.9}]
[]
[]
[]
[]
[]
[null,null,"Energiamuotojen kertoimet"]
[null,null,"sähkö",1.2]
[null,null,"kaukolämpö",0.5]
[null,null,"kaukojäähdytys",0.28000000000000003,null,null,null,null,null,null,null,null,null,null,null,null,null,null,null,null,"kaukojäähdytys",0.28000000000000003]
[null,null,"fossiiliset polttoaineet",1,null,null,null,null,null,null,null,null,null,null,null,null,null,null,null,null,"fossiiliset polttoaineet",1]
[null,null,"rakennuksessa käytettävät uusiutuvat polttoaineet",0.5,null,null,null,null,null,null,null,null,null,null,null,null,null,null,null,null,"rakennuksessa käytettävät uusiutuvat polttoaineet",0.5]

{"sheet":"A","index":4,"n_rows":21,"n_cols":22,"rows_kept":21,"cut":false,"hidden":true,"merged":[]}
[{"$f":"MATCH(Rakennusluokka,RakLuokka,0)","v":1},{"$f":"Kerroslukumäärä","v":1},{"$f":"MATCH(Rakennusvaipan_massiivisuus,RakVaipMassiivisuus,0)","v":1},{"$f":"MATCH(Ulkoseinän_tyyppi,UlkoseinänTyyppi,0)","v":2},{"$f":"MATCH(Alapohjan_tyyppi,AlapohjanTyyp,0)","v":1},{"$f":"Ikkunoiden_U_arvo","v":1},{"$f":"MATCH(Koneellinen_ilmanvaihto,KoneellinenIV,0)","v":2},{"$f":"MATCH(Jälkilämmityspatteri,JlkLämPatteri,0)","v":1},{"$f":"MATCH(Lämmitys_tapa,Lämmitystapa,0)","v":1},{"$f":"MATCH(Tilojen_lämmönjakojärjestelmä,TilLämJakoJärj,0)","v":7},{"$f":"Varaavien_tulisijojen_määrä","v":0},{"$f":"MATCH(Lämpimän_käyttöveden_varastointi,LKVVarastointi,0)","v":10},{"$f":"MATCH(Lämpimän_käyttöveden__kierto__ja_siirtojohdot,LKVKiertoJaSiirto,0)","v":8},{"$f":"MATCH(Käyttöveteen_kytkettyjä_lämmityslaitteita,LKVPatteri,0)","v":1},{"$f":"MATCH(Jäteilman_lämpötila,JäteilmLämpTila,0)","v":{"$error":"#N/A"}},{"$f":"MATCH(Aurinkolämpö__tukemaan_käyttöveden_lämmitystä,Aurinkolämpö,0)","v":2},{"$f":"MATCH(Suuntaus,AurSuunta,0)","v":1},null,null,null,null,{"$f":"MATCH(V2,V3:V5,0)","v":{"$error":"#N/A"}}]
["Rakennusluokka","Kerroslukumäärä","Rakennusvaipan massiivisuus","Ulkoseinän tyyppi","Alapohjan tyyppi","Ikkunoiden U-arvo","Koneellinen ilmanvaihto","Jälkilämmityspatteri","Lämmitystapa","Tilojen lämmönjakojärjestelmä","Varaavien tulisijojen määrä","Lämpimän käyttöveden varastointi","Lämpimän käyttöveden kierto- ja siirtojohdot","käyttöveteen kytkettyjä lämmityslaitteita","Jäteilman alin lämpötila","Aurinkolämpö (tukemaan käyttöveden lämmitystä)","Aurinkokeräimen suuntaus","Aurinkosähkö","Suuntaus","Kallistuskulma","Aurinkosähkökennon tyyppi","Aurinkokennon asennustapa"]
["Erillinen pientalo, 50 … 150 m2",1,"Kevytrakenteinen","Hirsi","Maata vasten",1,"Korkealla hyötysuhteella toimiva ilmanvaihto","Kytketty lämmitysjärjestelmään","Kaukolämpö","Vesiradiaattori 45/35 °C - jakojohdot eristetty",0,"ei varaajaa","Ei kiertoa - siirtoputket eristämättömät","Ei","-","Ei","etelä/kaakko/lounas","Ei","etelä/kaakko/lounas","< 30°","piipohjaiset yksikiteiset kennot","tuulettamaton moduuli"]
["Erillinen pientalo, yli 150 … 600 m2",2,"Keskiraskas I","Muu seinätyyppi","Ryömintätilaan rajoittuva",0.9,"Normaalilla hyötysuhteella toimiva ilmanvaihto","Sähkölämmityspatteri","Suora sähkö","Vesiradiaattori 45/35 °C - jakojohdot eristämätön",1,"50 l varaaja, 40 mm eristys","Ei kiertoa - siirtoputket suojaputkessa","Kyllä","-3 °C","Kyllä","itä/länsi","Kyllä","itä/länsi","30° - 70°","piipohjaiset monikiteiset kennot","hieman tuuletettu moduuli"]
["Erillinen pientalo, yli 600 m2",3,"Keskiraskas II",null,null,0.8,"Alhaisella hyötysuhteella toimiva ilmanvaihto",null,"Pelletti","Vesiradiaattori 45/35 °C - jakotukilla",2,"50 l varaaja, 100 mm eristys","Ei kiertoa - siirtoputket eristetty perustasoon",null,"+1 °C",null,"pohjoinen/koillinen/luode",null,"pohjoinen/koillinen/luode","> 70°","ohutkalvotekniikalla toteutettu CuInGaSe2 kenno","voimakkaasti tuulettuva tai koneellisesti tuuletettu moduuli"]
["Rivi- tai asuinkerrostalo, enintään kaksi kerrosta",4,"Raskasrakenteinen",null,null,0.7,null,null,"Puukattila","Vesiradiaattori 70/40 °C - jakojohdot eristetty",3,"100 l varaaja, 40 mm eristys","Ei kiertoa - siirtoputket eristetty korkeaan tasoon",null,"+3 °C",null,null,null,null,null,"ohutkalvotekniikalla toteutettu CdTe kenno"]
["Asuinkerrostalo, vähintään kolme kerrosta",5,null,null,null,0.6,null,null,"Öljy","Vesiradiaattori 70/40 °C - jakojohdot eristämätön",4,"100 l varaaja, 100 mm eristys","Kiertojohto - ei tietoa eristystasosta",null,"+5 °C",null,null,null,null,null,"ohutkalvo kiteetön pii kennot"]
["Toimistorakennus, terveyskeskus",6,null,null,null,null,null,null,"Maalämpöpumppu","Vesiradiaattori 70/40 °C - jakotukilla",5,"150 l varaaja, 40 mm eristys","Kiertojohto - eristetty perustasoon",null,null,null,null,null,null,null,"muut ohutkalvotekniikalla toteutetut kennot"]
["Liikerakennus, tavaratalo, tms.",7,null,null,null,null,null,null,"Poistoilmalämpöpumppu","Vesikiertoinen lattialämmitys 40/30 °C - maata vasten rajoittuvassa rakenteessa",6,"150 l varaaja, 100 mm eristys","Kiertojohto - eristetty korkeaan tasoon"]
["Majoitusliikerakennus",8,null,null,null,null,null,null,null,"Vesikiertoinen lattialämmitys 40/30 °C - ryömintätilaa vasten rajoittuvassa rakenteessa",7,"200 l varaaja, 40 mm eristys","Kiertojohto - suojaputkessa"]
["Opetusrakennus tai päiväkoti",9,null,null,null,null,null,null,null,"Vesikiertoinen lattialämmitys 40/30 °C - ulkoilmaan rajoittuvassa rakenteessa",8,"200 l varaaja, 100 mm eristys","Kiertojohto - suojaputki + eristetty perustasoon"]
["Liikuntahalli pois lukien uima- ja jäähällit",10,null,null,null,null,null,null,null,"Vesikiertoinen lattialämmitys 40/30 °C - lämpimään tilaan rajoittuvassa rakenteessa",9,"300 l varaaja, 40 mm eristys","Kiertojohto - suojaputki + eristetty korkeaan tasoon"]
["Sairaala",11,null,null,null,null,null,null,null,"Sähkölämmitys - kattolämmitys ulkoilmaan rajoittuvassa rakenteessa",10,"300 l varaaja, 100 mm eristys"]
["Muu rakennus",12,null,null,null,null,null,null,null,"Sähkölämmitys - kattolämmitys lämpimään tilaan rajoittuvassa rakenteessa",null,"500 l varaaja, 40 mm eristys"]
[null,13,null,null,null,null,null,null,null,"Sähkölämmitys - ikkunalämmitys",null,"500 l varaaja, 100 mm eristys"]
[null,14,null,null,null,null,null,null,null,"Sähkölämmitys - ilmanvaihtolämmitys",null,"1000 l varaaja, 40 mm eristys"]
[null,15,null,null,null,null,null,null,null,"Sähköpatterilämmitys",null,"1000 l varaaja, 100 mm eristys"]
[null,null,null,null,null,null,null,null,null,"Sähköinen lattialämmitys - maata vasten rajoittuvassa rakenteessa",null,"2000 l varaaja, 40 mm eristys"]
[null,null,null,null,null,null,null,null,null,"Sähköinen lattialämmitys - ryömintätilaan tai ulkoilmaan rajoittuvassa rakenteessa",null,"2000 l varaaja, 100 mm eristys"]
[null,null,null,null,null,null,null,null,null,"Sähköinen lattialämmitys - lämpimään tilaan rajoittuvassa rakenteessa",null,"3000 l varaaja, 40 mm eristys"]
[null,null,null,null,null,null,null,null,null,"Muu lämmityslaite",null,"3000 l varaaja, 100 mm eristys"]

{"sheet":"Laskentatulokset ja kuvaajat","index":5,"n_rows":36,"n_cols":29,"rows_kept":36,"cut":false,"hidden":true,"merged":[[22,2,22,5],[22,7,22,10]]}
[]
[]
[]
[]
[null,null,null,null,null,null,null,null,null,null,null,null,null,null,null,null,null,null,null,null,null,null,"Energiatehokkuusluokka"]
[null,"Ulkoseinät",{"$f":"Data!P4","v":2586.2177111999999},{"$f":"C6/SUM($C$6:$C$14)","v":0.15039989578554794},null,null,null,null,null,null,null,null,null,null,null,null,null,null,null,null,"E-luku vaatimustaso",null,"A","B","C","D","E","F","G"]
[null,"Yläpohja",{"$f":"Data!P5","v":1812.6410860799995},{"$f":"C7/SUM($C$6:$C$14)","v":0.10541302430279109},null,null,null,null,null,null,null,null,null,null,null,null,null,null,null,"Erillinen pientalo, 50 … 150 m2",{"$f":"200-0.6*Lämmitetty_nettopinta_ala__Anetto","v":110.24000000000001},null,{"$f":"110-0.2*Lämmitetty_nettopinta_ala__Anetto","v":80.08},{"$f":"215-0.6*Lämmitetty_nettopinta_ala__Anetto","v":125.24000000000001},{"$f":"252-0.6*Lämmitetty_nettopinta_ala__Anetto","v":162.24},{"$f":"332-0.6*Lämmitetty_nettopinta_ala__Anetto","v":242.24},{"$f":"462-0.6*Lämmitetty_nettopinta_ala__Anetto","v":372.24},{"$f":"532-0.6*Lämmitetty_nettopinta_ala__Anetto","v":442.24}]
[null,"Alapohja",{"$f":"Data!P10","v":2381.9611200000004},0.13852147971216286,null,null,null,null,null,null,null,null,null,null,null,null,null,null,null,"Erillinen pientalo, yli 150 … 600 m2",{"$f":"116-0.04*Lämmitetty_nettopinta_ala__Anetto","v":110.01600000000001},null,{"$f":"83-0.02*Lämmitetty_nettopinta_ala__Anetto","v":80.007999999999996},{"$f":"131-0.04*Lämmitetty_nettopinta_ala__Anetto","v":125.01600000000001},{"$f":"173-0.07*Lämmitetty_nettopinta_ala__Anetto","v":162.52799999999999},{"$f":"253-0.07*Lämmitetty_nettopinta_ala__Anetto","v":242.52799999999999},{"$f":"383-0.07*Lämmitetty_nettopinta_ala__Anetto","v":372.52800000000002},{"$f":"453-0.07*Lämmitetty_nettopinta_ala__Anetto","v":442.52800000000002}]
[null,"Katto- ikkunat",{"$f":"Data!P8","v":0},0,null,null,null,null,null,null,null,null,null,null,null,null,null,null,null,"Erillinen pientalo, yli 600 m2",92,null,70,106,130,210,340,410]
[null,"Ikkunat",{"$f":"Data!P7","v":3423.8776070399999},0.19911349034971654,null,null,null,null,null,null,null,null,null,null,null,null,null,null,null,"Rivi- tai asuinkerrostalo, enintään kaksi kerrosta",105,null,80,110,150,210,340,410]
[null,"Ovet",{"$f":"Data!P9","v":1103.9555039999998},6.4199851402472294E-2,null,null,null,null,null,null,null,null,null,null,null,null,null,null,null,"Asuinkerrostalo, vähintään kolme kerrosta",90,null,75,100,130,160,190,240]
[null,"Vuotoilma",{"$f":"Data!P18","v":2286.5444379062856},0.13297258141912674,null,null,null,null,null,null,null,null,null,null,null,null,null,null,null,"Toimistorakennus, terveyskeskus",100,null,80,120,170,200,240,300]
[null,"Tuloilman lämpene- minen tilassa",{"$f":"Data!P26","v":1887.1142400000003},0.10974396463309764,null,null,null,null,null,null,null,null,null,null,null,null,null,null,null,"Liikerakennus, tavaratalo, tms.",135,null,90,170,240,280,340,390]
[null,"Kylmäsillat",{"$f":"Data!P12","v":1713.2966929153868},9.9635712395084952E-2,null,null,null,null,null,null,null,null,null,null,null,null,null,null,null,"Majoitusliikerakennus",160,null,90,170,240,280,340,450]
[null,null,null,null,null,null,null,null,null,null,null,null,null,null,null,null,null,null,null,"Opetusrakennus tai päiväkoti",100,null,90,130,170,230,300,360]
[null,null,null,null,null,null,null,null,null,null,null,null,null,null,null,null,null,null,null,"Liikuntahalli pois lukien uima- ja jäähällit",100,null,90,130,170,190,240,280]
[null,null,null,null,null,null,null,null,null,null,null,null,null,null,null,null,null,null,null,"Sairaala",320,null,150,350,450,550,650,800]
[null,null,null,null,null,null,null,null,null,null,null,null,null,null,null,null,null,null,null,"Muu rakennus"]
[null,null,null,null,null,null,null,null,null,null,null,null,null,null,null,null,null,null,null,{"$f":"MATCH(Rakennusluokka,T7:T18,0)","v":1},{"$f":"INDEX(U7:U17,$T$19)","v":110.24000000000001},{"$f":"INDEX(V7:V17,$T$19)","v":0},80.08,125.24000000000001,162.24,242.24,372.24,442.24]
[]
[null,null,null,null,null,null,null,null,null,null,null,null,null,null,null,null,null,null,null,"Energialuokka",{"$f":"IF(F36<=W19,W6,(IF(AND(F36>W19,F36<=X19),X6,(IF(AND(F36>X19,F36<=Y19),Y6,(IF(AND(F36>Y19,F36<=Z19),Z6,(IF(AND(F36>Z19,F36<=AA19),AA6,(IF(AND(F36>AA19,F36<=AB19),AB6,(IF(F36>AB19,AC6)))))))))))))","v":"B"}]
[]
[null,null,"E-luku valituilla U-arvoilla",null,null,null,null,"E-luku U-arvon vertailuarvoilla"]
[null,null,null,"Energiamuodon kerroin","Laskennallinen ostoenergiankulutus","E-luku"]
[null,"Tilojen lämmitys",{"$f":"CHOOSE(LämmitystapaV,Data!P70/Data!P86,Data!P70/Data!P86,Data!P70/Data!P86,Data!P70/Data!P86,Data!P70/Data!P86,Data!P103/Mitoitus!S47+Data!P102,Data!P111/Mitoitus!W47+Data!P110)","v":9282.1690857661924},{"$f":"CHOOSE(LämmitystapaV,Data!D207,Data!D206,Data!D210,Data!D210,Data!D209,Data!D206,Data!D206)","v":0.5},{"$f":"C25/Lämmitetty_nettopinta_ala__Anetto","v":62.046584797902355},{"$f":"C25*D25/Mitoitus!$G$16","v":31.023292398951178},null,{"$f":"CHOOSE(LämmitystapaV,Data!AH70/Data!AH86,Data!AH70/Data!AH86,Data!AH70/Data!AH86,Data!AH70/Data!AH86,Data!AH70/Data!AH86,Data!AH103/Mitoitus!S47+Data!AH102,Data!AH111/Mitoitus!W47+Data!AH110)","v":9095.8454687449102},{"$f":"D25","v":0.5},{"$f":"H25/Lämmitetty_nettopinta_ala__Anetto","v":60.801106074498065},{"$f":"H25*I25/Mitoitus!$G$16","v":30.400553037249033}]
[null,"Varaavat tulisijat",{"$f":"Data!P83/Data!P82","v":0},0.5,0,{"$f":"C26*D26/Mitoitus!G16","v":0},null,{"$f":"Data!AH83/Data!AH82","v":0},0.5,0,{"$f":"H26*I26/Mitoitus!G16","v":0}]
[null,"Käyttövesi",{"$f":"CHOOSE(LämmitystapaV,Data!P80,Data!P80,Data!P80,Data!P80,Data!P80,Data!P105/Mitoitus!S49+Data!P104,Data!P113/Mitoitus!W47+Data!P112)","v":8387.7379999999994},{"$f":"CHOOSE(LämmitystapaV,Data!D207,Data!D206,Data!D210,Data!D210,Data!D209,Data!D206,Data!D206)","v":0.5},56.06776737967914,{"$f":"C27*D27/Mitoitus!$G$16","v":28.03388368983957},null,{"$f":"CHOOSE(LämmitystapaV,Data!AH80,Data!AH80,Data!AH80,Data!AH80,Data!AH80,Data!AH105/Mitoitus!S49+Data!AH104,Data!AH113/Mitoitus!W47+Data!AH112)","v":8387.7379999999994},0.5,56.06776737967914,{"$f":"H27*I27/Mitoitus!$G$16","v":28.03388368983957}]
[null,"Aurinko- lämpö",{"$f":"Data!P37","v":1170},0,7.8208556149732624,{"$f":"C28*D28","v":0},null,null,null,0]
[null,"Ilman- vaihdon jälkiläm- mityspatteri",{"$f":"IF(JälkilämmityspatteriV=1,CHOOSE(LämmitystapaV,Data!P25/Data!P86,Data!P25/Data!P86,Data!P25/Data!P86,Data!P25/Data!P86,Data!P25/Data!P86,(Data!P25/Data!P86)/Mitoitus!S47,(Data!P25/Data!P86)/Mitoitus!W47),Data!P25)","v":1922.1856338791497},{"$f":"IF(JälkilämmityspatteriV=1,CHOOSE(LämmitystapaV,Data!D207,Data!D206,Data!D210,Data!D210,Data!D209,Data!D206,Data!D206),Data!D206)","v":0.5},12.848834451063835,{"$f":"C29*D29/Mitoitus!$G$16","v":6.4244172255319176},null,{"$f":"IF(JälkilämmityspatteriV=1,CHOOSE(LämmitystapaV,Data!AH25/Data!AH86,Data!AH25/Data!AH86,Data!AH25/Data!AH86,Data!AH25/Data!AH86,Data!AH25/Data!AH86,(Data!AH25/Data!AH86)/Mitoitus!S47,(Data!AH25/Data!AH86)/Mitoitus!W47,Data!AH25),Data!AH25)","v":1922.1856338791497},0.5,12.848834451063835,{"$f":"H29*I29/Mitoitus!$G$16","v":6.4244172255319176}]
[null,"Kulutus- ja LVI-sähkö",{"$f":"Data!P92+Data!P97+Data!P94+Data!P96+Data!P95-Mitoitus!U57","v":4498.9421714285709},{"$f":"Data!D206","v":1.2},30.073142857142855,{"$f":"C30*D30/Mitoitus!$G$16","v":36.087771428571422},null,{"$f":"Data!AH92+Data!AH97+Data!AH94+Data!AH96+Data!AH95-Mitoitus!U57","v":4498.9421714285709},1.2,30.073142857142855,{"$f":"H30*I30/Mitoitus!$G$16","v":36.087771428571422}]
[]
[]
[]
[]
[]
[null,"E-luku",null,null,{"$f":"E25+E26+E27+E29+E30","v":161.0363294857882},{"$f":"F25+F26+F27+F29+F30","v":101.56936474289409},null,null,null,{"$f":"J25+J26+J27+J29+J30","v":159.79085076238391},{"$f":"K25+K26+K27+K29+K30","v":100.94662538119195}]